Workbook

Sheet Data
A1: Kernels popped (%) | B1: Brand | C1: Power of Microwave | D1: Time | I1: Power | J1: 500 | K1: 500 | L1: 500 | M1: 500 | N1: 600 | O1: 600 | P1: 600 | Q1: 600
A2: 70.3 | B2: 1 | C2: 500 | D2: 8 | I2: Time | J2: 8 | K2: 8 | L2: 4 | M2: 4 | N2: 8 | O2: 8 | P2: 4 | Q2: 4
A3: 91 | B3: 1 | C3: 500 | D3: 8 | H3: Brand | I3: 1 | J3: 70.3 | K3: 91 | L3: 72.7 | M3: 81.9 | N3: 78.7 | O3: 88.7 | P3: 74.1 | Q3: 72.1
A4: 72.7 | B4: 1 | C4: 500 | D4: 4 | I4: 2 | J4: 93.4 | K4: 76.3 | L4: 45.3 | M4: 47.6 | N4: 92.2 | O4: 84.7 | P4: 66.3 | Q4: 45.7
A5: 81.9 | B5: 1 | C5: 500 | D5: 4 | I5: 3 | J5: 50.1 | K5: 81.5 | L5: 51.4 | M5: 67.7 | N5: 71.5 | O5: 80 | P5: 64 | Q5: 77
A6: 78.7 | B6: 1 | C6: 600 | D6: 8
A7: 88.7 | B7: 1 | C7: 600 | D7: 8
A8: 74.1 | B8: 1 | C8: 600 | D8: 4
A9: 72.1 | B9: 1 | C9: 600 | D9: 4
A10: 93.4 | B10: 2 | C10: 500 | D10: 8
A11: 76.3 | B11: 2 | C11: 500 | D11: 8
A12: 45.3 | B12: 2 | C12: 500 | D12: 4
A13: 47.6 | B13: 2 | C13: 500 | D13: 4
A14: 92.2 | B14: 2 | C14: 600 | D14: 8
A15: 84.7 | B15: 2 | C15: 600 | D15: 8
A16: 66.3 | B16: 2 | C16: 600 | D16: 4
A17: 45.7 | B17: 2 | C17: 600 | D17: 4
A18: 50.1 | B18: 3 | C18: 500 | D18: 8
A19: 81.5 | B19: 3 | C19: 500 | D19: 8
A20: 51.4 | B20: 3 | C20: 500 | D20: 4
A21: 67.7 | B21: 3 | C21: 500 | D21: 4
A22: 71.5 | B22: 3 | C22: 600 | D22: 8
A23: 80 | B23: 3 | C23: 600 | D23: 8
A24: 64 | B24: 3 | C24: 600 | D24: 4
A25: 77 | B25: 3 | C25: 600 | D25: 4

Sheet ANOVA-v1
B1: XLSTAT 2023.2.0.1411 - ANOVA - Start time: 12/09/2023 at 18:31:53 / End time: 12/09/2023 at 18:31:57 / Microsoft Excel 16.016731
B2: Y / Dependent variables: Workbook = demoANO3 (1).xls / Sheet = Data / Range = 'Data'!$A:$A / 24 rows and 1 column
B3: X / Qualitative: Workbook = demoANO3 (1).xls / Sheet = Data / Range = 'Data'!$B:$D / 24 rows and 3 columns
B4: Constraints: a1=0
B5: Interactions / Level: 2
B6: Confidence interval (%): 95
B7: Tolerance: 0,0001
B8: Use least squares means: Yes
B13: Summary statistics (Quantitative data):
B15: Variable | C15: Observations | D15: Obs. with missing data | E15: Obs. without missing data | F15: Minimum | G15: Maximum | H15: Mean | I15: Std. deviation
B16: Kernels popped (%) | C16: 24 | D16: 0 | E16: 24 | F16: 45.3 | G16: 93.4 | H16: 71.84166667 | I16: 14.79447361
B19: Summary statistics (Qualitative data):
B21: Variable | C21: Categories | D21: Counts | E21: Frequencies | F21: %
B22: Brand | C22: 1 | D22: 8 | E22: 8 | F22: 33.33333333
C23: 2 | D23: 8 | E23: 8 | F23: 33.33333333
C24: 3 | D24: 8 | E24: 8 | F24: 33.33333333
B25: Power of Microwave | C25: 500 | D25: 12 | E25: 12 | F25: 50
C26: 600 | D26: 12 | E26: 12 | F26: 50
B27: Time | C27: 4 | D27: 12 | E27: 12 | F27: 50
C28: 8 | D28: 12 | E28: 12 | F28: 50
B31: Correlation matrix:
C33: Brand-1 | D33: Brand-2 | E33: Brand-3 | F33: Power of Microwave-500 | G33: Power of Microwave-600 | H33: Time-4 | I33: Time-8 | J33: Brand-1*Power of Microwave-500 | K33: Brand-1*Power of Microwave-600 | L33: Brand-2*Power of Microwave-500 | M33: Brand-2*Power of Microwave-600 | N33: Brand-3*Power of Microwave-500 | O33: Brand-3*Power of Microwave-600 | P33: Brand-1*Time-4 | Q33: Brand-1*Time-8 | R33: Brand-2*Time-4 | S33: Brand-2*Time-8 | T33: Brand-3*Time-4 | U33: Brand-3*Time-8 | V33: Power of Microwave-500*Time-4 | W33: Power of Microwave-500*Time-8 | X33: Power of Microwave-600*Time-4 | Y33: Power of Microwave-600*Time-8 | Z33: Kernels popped (%)
B34: Brand-1 | C34: 1 | D34: -0.5 | E34: -0.5 | F34: 0 | G34: 0 | H34: 0 | I34: 0 | J34: 0.632455532 | K34: 0.632455532 | L34: -0.316227766 | M34: -0.316227766 | N34: -0.316227766 | O34: -0.316227766 | P34: 0.632455532 | Q34: 0.632455532 | R34: -0.316227766 | S34: -0.316227766 | T34: -0.316227766 | U34: -0.316227766 | V34: 0 | W34: 0 | X34: 0 | Y34: 0 | Z34: 0.3342362187
B35: Brand-2 | C35: -0.5 | D35: 1 | E35: -0.5 | F35: 0 | G35: 0 | H35: 0 | I35: 0 | J35: -0.316227766 | K35: -0.316227766 | L35: 0.632455532 | M35: 0.632455532 | N35: -0.316227766 | O35: -0.316227766 | P35: -0.316227766 | Q35: -0.316227766 | R35: 0.632455532 | S35: 0.632455532 | T35: -0.316227766 | U35: -0.316227766 | V35: 0 | W35: 0 | X35: 0 | Y35: 0 | Z35: -0.1417910191
B36: Brand-3 | C36: -0.5 | D36: -0.5 | E36: 1 | F36: 0 | G36: 0 | H36: 0 | I36: 0 | J36: -0.316227766 | K36: -0.316227766 | L36: -0.316227766 | M36: -0.316227766 | N36: 0.632455532 | O36: 0.632455532 | P36: -0.316227766 | Q36: -0.316227766 | R36: -0.316227766 | S36: -0.316227766 | T36: 0.632455532 | U36: 0.632455532 | V36: 0 | W36: 0 | X36: 0 | Y36: 0 | Z36: -0.1924451996
B37: Power of Microwave-500 | C37: 0 | D37: 0 | E37: 0 | F37: 1 | G37: -1 | H37: 0 | I37: 0 | J37: 0.4472135955 | K37: -0.4472135955 | L37: 0.4472135955 | M37: -0.4472135955 | N37: 0.4472135955 | O37: -0.4472135955 | P37: 0 | Q37: 0 | R37: 0 | S37: 0 | T37: 0 | U37: 0 | V37: 0.5773502692 | W37: 0.5773502692 | X37: -0.5773502692 | Y37: -0.5773502692 | Z37: -0.1893027127
B38: Power of Microwave-600 | C38: 0 | D38: 0 | E38: 0 | F38: -1 | G38: 1 | H38: 0 | I38: 0 | J38: -0.4472135955 | K38: 0.4472135955 | L38: -0.4472135955 | M38: 0.4472135955 | N38: -0.4472135955 | O38: 0.4472135955 | P38: 0 | Q38: 0 | R38: 0 | S38: 0 | T38: 0 | U38: 0 | V38: -0.5773502692 | W38: -0.5773502692 | X38: 0.5773502692 | Y38: 0.5773502692 | Z38: 0.1893027127
B39: Time-4 | C39: 0 | D39: 0 | E39: 0 | F39: 0 | G39: 0 | H39: 1 | I39: -1 | J39: 0 | K39: 0 | L39: 0 | M39: 0 | N39: 0 | O39: 0 | P39: 0.4472135955 | Q39: -0.4472135955 | R39: 0.4472135955 | S39: -0.4472135955 | T39: 0.4472135955 | U39: -0.4472135955 | V39: 0.5773502692 | W39: -0.5773502692 | X39: 0.5773502692 | Y39: -0.5773502692 | Z39: -0.5540988216
B40: Time-8 | C40: 0 | D40: 0 | E40: 0 | F40: 0 | G40: 0 | H40: -1 | I40: 1 | J40: 0 | K40: 0 | L40: 0 | M40: 0 | N40: 0 | O40: 0 | P40: -0.4472135955 | Q40: 0.4472135955 | R40: -0.4472135955 | S40: 0.4472135955 | T40: -0.4472135955 | U40: 0.4472135955 | V40: -0.5773502692 | W40: 0.5773502692 | X40: -0.5773502692 | Y40: 0.5773502692 | Z40: 0.5540988216
B41: Brand-1*Power of Microwave-500 | C41: 0.632455532 | D41: -0.316227766 | E41: -0.316227766 | F41: 0.4472135955 | G41: -0.4472135955 | H41: 0 | I41: 0 | J41: 1 | K41: -0.2 | L41: -0.2 | M41: -0.2 | N41: -0.2 | O41: -0.2 | P41: 0.4 | Q41: 0.4 | R41: -0.2 | S41: -0.2 | T41: -0.2 | U41: -0.2 | V41: 0.2581988897 | W41: 0.2581988897 | X41: -0.2581988897 | Y41: -0.2581988897 | Z41: 0.2202671345
B42: Brand-1*Power of Microwave-600 | C42: 0.632455532 | D42: -0.316227766 | E42: -0.316227766 | F42: -0.4472135955 | G42: 0.4472135955 | H42: 0 | I42: 0 | J42: -0.2 | K42: 1 | L42: -0.2 | M42: -0.2 | N42: -0.2 | O42: -0.2 | P42: 0.4 | Q42: 0.4 | R42: -0.2 | S42: -0.2 | T42: -0.2 | U42: -0.2 | V42: -0.2581988897 | W42: -0.2581988897 | X42: 0.2581988897 | Y42: 0.2581988897 | Z42: 0.2025119566
B43: Brand-2*Power of Microwave-500 | C43: -0.316227766 | D43: 0.632455532 | E43: -0.316227766 | F43: 0.4472135955 | G43: -0.4472135955 | H43: 0 | I43: 0 | J43: -0.2 | K43: -0.2 | L43: 1 | M43: -0.2 | N43: -0.2 | O43: -0.2 | P43: -0.2 | Q43: -0.2 | R43: 0.4 | S43: 0.4 | T43: -0.2 | U43: -0.2 | V43: 0.2581988897 | W43: 0.2581988897 | X43: -0.2581988897 | Y43: -0.2581988897 | Z43: -0.1911898141
B44: Brand-2*Power of Microwave-600 | C44: -0.316227766 | D44: 0.632455532 | E44: -0.316227766 | F44: -0.4472135955 | G44: 0.4472135955 | H44: 0 | I44: 0 | J44: -0.2 | K44: -0.2 | L44: -0.2 | M44: 1 | N44: -0.2 | O44: -0.2 | P44: -0.2 | Q44: -0.2 | R44: 0.4 | S44: 0.4 | T44: -0.2 | U44: -0.2 | V44: -0.2581988897 | W44: -0.2581988897 | X44: 0.2581988897 | Y44: 0.2581988897 | Z44: 0.01183678526
B45: Brand-3*Power of Microwave-500 | C45: -0.316227766 | D45: -0.316227766 | E45: 0.632455532 | F45: 0.4472135955 | G45: -0.4472135955 | H45: 0 | I45: 0 | J45: -0.2 | K45: -0.2 | L45: -0.2 | M45: -0.2 | N45: 1 | O45: -0.2 | P45: -0.2 | Q45: -0.2 | R45: -0.2 | S45: -0.2 | T45: 0.4 | U45: 0.4 | V45: 0.2581988897 | W45: 0.2581988897 | X45: -0.2581988897 | Y45: -0.2581988897 | Z45: -0.2830535606
B46: Brand-3*Power of Microwave-600 | C46: -0.316227766 | D46: -0.316227766 | E46: 0.632455532 | F46: -0.4472135955 | G46: 0.4472135955 | H46: 0 | I46: 0 | J46: -0.2 | K46: -0.2 | L46: -0.2 | M46: -0.2 | N46: -0.2 | O46: 1 | P46: -0.2 | Q46: -0.2 | R46: -0.2 | S46: -0.2 | T46: 0.4 | U46: 0.4 | V46: -0.2581988897 | W46: -0.2581988897 | X46: 0.2581988897 | Y46: 0.2581988897 | Z46: 0.03962749849
B47: Brand-1*Time-4 | C47: 0.632455532 | D47: -0.316227766 | E47: -0.316227766 | F47: 0 | G47: 0 | H47: 0.4472135955 | I47: -0.4472135955 | J47: 0.4 | K47: 0.4 | L47: -0.2 | M47: -0.2 | N47: -0.2 | O47: -0.2 | P47: 1 | Q47: -0.2 | R47: -0.2 | S47: -0.2 | T47: -0.2 | U47: -0.2 | V47: 0.2581988897 | W47: -0.2581988897 | X47: 0.2581988897 | Y47: -0.2581988897 | Z47: 0.1037005318
B48: Brand-1*Time-8 | C48: 0.632455532 | D48: -0.316227766 | E48: -0.316227766 | F48: 0 | G48: 0 | H48: -0.4472135955 | I48: 0.4472135955 | J48: 0.4 | K48: 0.4 | L48: -0.2 | M48: -0.2 | N48: -0.2 | O48: -0.2 | P48: -0.2 | Q48: 1 | R48: -0.2 | S48: -0.2 | T48: -0.2 | U48: -0.2 | V48: -0.2581988897 | W48: 0.2581988897 | X48: -0.2581988897 | Y48: 0.2581988897 | Z48: 0.3190785593
B49: Brand-2*Time-4 | C49: -0.316227766 | D49: 0.632455532 | E49: -0.316227766 | F49: 0 | G49: 0 | H49: 0.4472135955 | I49: -0.4472135955 | J49: -0.2 | K49: -0.2 | L49: 0.4 | M49: 0.4 | N49: -0.2 | O49: -0.2 | P49: -0.2 | Q49: -0.2 | R49: 1 | S49: -0.2 | T49: -0.2 | U49: -0.2 | V49: 0.2581988897 | W49: -0.2581988897 | X49: 0.2581988897 | Y49: -0.2581988897 | Z49: -0.63661319
B50: Brand-2*Time-8 | C50: -0.316227766 | D50: 0.632455532 | E50: -0.316227766 | F50: 0 | G50: 0 | H50: -0.4472135955 | I50: 0.4472135955 | J50: -0.2 | K50: -0.2 | L50: 0.4 | M50: 0.4 | N50: -0.2 | O50: -0.2 | P50: -0.2 | Q50: -0.2 | R50: -0.2 | S50: 1 | T50: -0.2 | U50: -0.2 | V50: -0.2581988897 | W50: 0.2581988897 | X50: -0.2581988897 | Y50: 0.2581988897 | Z50: 0.4572601611
B51: Brand-3*Time-4 | C51: -0.316227766 | D51: -0.316227766 | E51: 0.632455532 | F51: 0 | G51: 0 | H51: 0.4472135955 | I51: -0.4472135955 | J51: -0.2 | K51: -0.2 | L51: -0.2 | M51: -0.2 | N51: 0.4 | O51: 0.4 | P51: -0.2 | Q51: -0.2 | R51: -0.2 | S51: -0.2 | T51: 1 | U51: -0.2 | V51: 0.2581988897 | W51: -0.2581988897 | X51: 0.2581988897 | Y51: -0.2581988897 | Z51: -0.2104889205
B52: Brand-3*Time-8 | C52: -0.316227766 | D52: -0.316227766 | E52: 0.632455532 | F52: 0 | G52: 0 | H52: -0.4472135955 | I52: 0.4472135955 | J52: -0.2 | K52: -0.2 | L52: -0.2 | M52: -0.2 | N52: 0.4 | O52: 0.4 | P52: -0.2 | Q52: -0.2 | R52: -0.2 | S52: -0.2 | T52: -0.2 | U52: 1 | V52: -0.2581988897 | W52: 0.2581988897 | X52: -0.2581988897 | Y52: 0.2581988897 | Z52: -0.0329371416
B53: Power of Microwave-500*Time-4 | C53: 0 | D53: 0 | E53: 0 | F53: 0.5773502692 | G53: -0.5773502692 | H53: 0.5773502692 | I53: -0.5773502692 | J53: 0.2581988897 | K53: -0.2581988897 | L53: 0.2581988897 | M53: -0.2581988897 | N53: 0.2581988897 | O53: -0.2581988897 | P53: 0.2581988897 | Q53: -0.2581988897 | R53: 0.2581988897 | S53: -0.2581988897 | T53: 0.2581988897 | U53: -0.2581988897 | V53: 1 | W53: -0.3333333333 | X53: -0.3333333333 | Y53: -0.3333333333 | Z53: -0.4282064744
B54: Power of Microwave-500*Time-8 | C54: 0 | D54: 0 | E54: 0 | F54: 0.5773502692 | G54: -0.5773502692 | H54: -0.5773502692 | I54: 0.5773502692 | J54: 0.2581988897 | K54: -0.2581988897 | L54: 0.2581988897 | M54: -0.2581988897 | N54: 0.2581988897 | O54: -0.2581988897 | P54: -0.2581988897 | Q54: 0.2581988897 | R54: -0.2581988897 | S54: 0.2581988897 | T54: -0.2581988897 | U54: 0.2581988897 | V54: -0.3333333333 | W54: 1 | X54: -0.3333333333 | Y54: -0.3333333333 | Z54: 0.2096185301
B55: Power of Microwave-600*Time-4 | C55: 0 | D55: 0 | E55: 0 | F55: -0.5773502692 | G55: 0.5773502692 | H55: 0.5773502692 | I55: -0.5773502692 | J55: -0.2581988897 | K55: 0.2581988897 | L55: -0.2581988897 | M55: 0.2581988897 | N55: -0.2581988897 | O55: 0.2581988897 | P55: 0.2581988897 | Q55: -0.2581988897 | R55: 0.2581988897 | S55: -0.2581988897 | T55: 0.2581988897 | U55: -0.2581988897 | V55: -0.3333333333 | W55: -0.3333333333 | X55: 1 | Y55: -0.3333333333 | Z55: -0.2116117333
B56: Power of Microwave-600*Time-8 | C56: 0 | D56: 0 | E56: 0 | F56: -0.5773502692 | G56: 0.5773502692 | H56: -0.5773502692 | I56: 0.5773502692 | J56: -0.2581988897 | K56: 0.2581988897 | L56: -0.2581988897 | M56: 0.2581988897 | N56: -0.2581988897 | O56: 0.2581988897 | P56: -0.2581988897 | Q56: 0.2581988897 | R56: -0.2581988897 | S56: 0.2581988897 | T56: -0.2581988897 | U56: 0.2581988897 | V56: -0.3333333333 | W56: -0.3333333333 | X56: -0.3333333333 | Y56: 1 | Z56: 0.4301996775
B57: Kernels popped (%) | C57: 0.3342362187 | D57: -0.1417910191 | E57: -0.1924451996 | F57: -0.1893027127 | G57: 0.1893027127 | H57: -0.5540988216 | I57: 0.5540988216 | J57: 0.2202671345 | K57: 0.2025119566 | L57: -0.1911898141 | M57: 0.01183678526 | N57: -0.2830535606 | O57: 0.03962749849 | P57: 0.1037005318 | Q57: 0.3190785593 | R57: -0.63661319 | S57: 0.4572601611 | T57: -0.2104889205 | U57: -0.0329371416 | V57: -0.4282064744 | W57: 0.2096185301 | X57: -0.2116117333 | Y57: 0.4301996775 | Z57: 1
B60: Regression of variable Kernels popped (%):
B62: Goodness of fit statistics (Kernels popped (%)):
B64: Observations | C64: 24
B65: Sum of weights | C65: 24
B66: DF | C66: 14
B67: R² | C67: 0.7042926739
B68: Adjusted R² | C68: 0.5141951071
B69: MSE | C69: 106.33125
B70: RMSE | C70: 10.31170451
B71: MAPE | C71: 9.815100982
B72: DW | C72: 3.05451556
B73: Cp | C73: 10
B74: AIC | C74: 119.0615053
B75: AICC | C75: 135.9845822
B76: SBC | C76: 130.8420436
B77: PC | C77: 0.7181463634
B80: Analysis of variance (Kernels popped (%)):
B82: Source | C82: DF | D82: Sum of squares | E82: Mean squares | F82: F | G82: Pr > F | H82: p-values signification codes
B83: Model | C83: 9 | D83: 3545.520833 | E83: 393.9467593 | F83: 3.704901045 | G83: 0.01419531755 | H83: *
B84: Error | C84: 14 | D84: 1488.6375 | E84: 106.33125
B85: Corrected Total | C85: 23 | D85: 5034.158333
B86: Computed against model Y=Mean(Y)
B87: Signification codes: 0 < *** < 0.001 < ** < 0.01 < * < 0.05 < . < 0.1 < ° < 1
B90: Type I Sum of Squares analysis (Kernels popped (%)):
B92: Source | C92: DF | D92: Sum of squares | E92: Mean squares | F92: F | G92: Pr > F | H92: p-values signification codes
B93: Brand | C93: 2 | D93: 566.6908333 | E93: 283.3454167 | F93: 2.664742648 | G93: 0.1045572666 | H93: °
B94: Power of Microwave | C94: 1 | D94: 180.4016667 | E94: 180.4016667 | F94: 1.696600639 | G94: 0.2137533173 | H94: °
B95: Time | C95: 1 | D95: 1545.615 | E95: 1545.615 | F95: 14.53584906 | G95: 0.001902916502 | H95: **
B96: Brand*Power of Microwave | C96: 2 | D96: 125.1258333 | E96: 62.56291667 | F96: 0.5883775152 | G96: 0.5683865342 | H96: °
B97: Brand*Time | C97: 2 | D97: 1127.6725 | E97: 563.83625 | F97: 5.302639158 | G97: 0.01930626562 | H97: *
B98: Power of Microwave*Time | C98: 1 | D98: 0.015 | E98: 0.015 | F98: 0.0001410685946 | G98: 0.9906911595 | H98: °
B99: Signification codes: 0 < *** < 0.001 < ** < 0.01 < * < 0.05 < . < 0.1 < ° < 1
B102: Type II Sum of Squares analysis (Kernels popped (%)):
B104: Source | C104: DF | D104: Sum of squares | E104: Mean squares | F104: F | G104: Pr > F | H104: p-values signification codes
B105: Brand | C105: 2 | D105: 566.6908333 | E105: 283.3454167 | F105: 2.664742648 | G105: 0.1045572666 | H105: °
B106: Power of Microwave | C106: 1 | D106: 180.4016667 | E106: 180.4016667 | F106: 1.696600639 | G106: 0.2137533173 | H106: °
B107: Time | C107: 1 | D107: 1545.615 | E107: 1545.615 | F107: 14.53584906 | G107: 0.001902916502 | H107: **
B108: Brand*Power of Microwave | C108: 2 | D108: 125.1258333 | E108: 62.56291667 | F108: 0.5883775152 | G108: 0.5683865342 | H108: °
B109: Brand*Time | C109: 2 | D109: 1127.6725 | E109: 563.83625 | F109: 5.302639158 | G109: 0.01930626562 | H109: *
B110: Power of Microwave*Time | C110: 1 | D110: 0.015 | E110: 0.015 | F110: 0.0001410685946 | G110: 0.9906911595 | H110: °
B111: Signification codes: 0 < *** < 0.001 < ** < 0.01 < * < 0.05 < . < 0.1 < ° < 1
B114: Type III Sum of Squares analysis (Kernels popped (%)):
B116: Source | C116: DF | D116: Sum of squares | E116: Mean squares | F116: F | G116: Pr > F | H116: p-values signification codes
B117: Brand | C117: 2 | D117: 566.6908333 | E117: 283.3454167 | F117: 2.664742648 | G117: 0.1045572666 | H117: °
B118: Power of Microwave | C118: 1 | D118: 180.4016667 | E118: 180.4016667 | F118: 1.696600639 | G118: 0.2137533173 | H118: °
B119: Time | C119: 1 | D119: 1545.615 | E119: 1545.615 | F119: 14.53584906 | G119: 0.001902916502 | H119: **
B120: Brand*Power of Microwave | C120: 2 | D120: 125.1258333 | E120: 62.56291667 | F120: 0.5883775152 | G120: 0.5683865342 | H120: °
B121: Brand*Time | C121: 2 | D121: 1127.6725 | E121: 563.83625 | F121: 5.302639158 | G121: 0.01930626562 | H121: *
B122: Power of Microwave*Time | C122: 1 | D122: 0.015 | E122: 0.015 | F122: 0.0001410685946 | G122: 0.9906911595 | H122: °
B123: Signification codes: 0 < *** < 0.001 < ** < 0.01 < * < 0.05 < . < 0.1 < ° < 1
B126: Model parameters (Kernels popped (%)):
B128: Source | C128: Value | D128: Standard error | E128: t | F128: Pr > |t| | G128: Lower bound (95%) | H128: Upper bound (95%) | I128: p-values signification codes
B129: Intercept | C129: 75.5125 | D129: 6.656176643 | E129: 11.34472597 | F129: 1.916496438e-08 | G129: 61.23642095 | H129: 89.78857905 | I129: ***
B130: Brand-1 | C130: 0 | D130: 0
B131: Brand-2 | C131: -27.55 | D131: 8.930198066 | E131: -3.085037957 | F131: 0.00806862172 | G131: -46.70336992 | H131: -8.39663008 | I131: **
B132: Brand-3 | C132: -15.6875 | D132: 8.930198066 | E132: -1.756679962 | F132: 0.1008117266 | G132: -34.84086992 | H132: 3.46586992 | I132: °
B133: Power of Microwave-500 | C133: 0 | D133: 0
B134: Power of Microwave-600 | C134: -0.625 | D134: 8.41947148 | E134: -0.07423268806 | F134: 0.9418754758 | G134: -18.68297034 | H134: 17.43297034 | I134: °
B135: Time-4 | C135: 0 | D135: 0
B136: Time-8 | C136: 6.925 | D136: 8.41947148 | E136: 0.8224981837 | F136: 0.4245813994 | G136: -11.13297034 | H136: 24.98297034 | I136: °
B137: Brand-1*Power of Microwave-500 | C137: 0 | D137: 0
B138: Brand-1*Power of Microwave-600 | C138: 0 | D138: 0
B139: Brand-2*Power of Microwave-500 | C139: 0 | D139: 0
B140: Brand-2*Power of Microwave-600 | C140: 7.15 | D140: 10.31170451 | E140: 0.6933868198 | F140: 0.4994097692 | G140: -14.96640656 | H140: 29.26640656 | I140: °
B141: Brand-3*Power of Microwave-500 | C141: 0 | D141: 0
B142: Brand-3*Power of Microwave-600 | C142: 11.025 | D142: 10.31170451 | E142: 1.069173383 | F142: 0.3030801744 | G142: -11.09140656 | H142: 33.14140656 | I142: °
B143: Brand-1*Time-4 | C143: 0 | D143: 0
B144: Brand-1*Time-8 | C144: 0 | D144: 0
B145: Brand-2*Time-4 | C145: 0 | D145: 0
B146: Brand-2*Time-8 | C146: 28.45 | D146: 10.31170451 | E146: 2.759000702 | F146: 0.01537085779 | G146: 6.333593442 | H146: 50.56640656 | I146: *
B147: Brand-3*Time-4 | C147: 0 | D147: 0
B148: Brand-3*Time-8 | C148: -1.225 | D148: 10.31170451 | E148: -0.1187970425 | F148: 0.9071239065 | G148: -23.34140656 | H148: 20.89140656 | I148: °
B149: Power of Microwave-500*Time-4 | C149: 0 | D149: 0
B150: Power of Microwave-500*Time-8 | C150: 0 | D150: 0
B151: Power of Microwave-600*Time-4 | C151: 0 | D151: 0
B152: Power of Microwave-600*Time-8 | C152: 0.1 | D152: 8.41947148 | E152: 0.01187723009 | F152: 0.9906911595 | G152: -17.95797034 | H152: 18.15797034 | I152: °
B153: Signification codes: 0 < *** < 0.001 < ** < 0.01 < * < 0.05 < . < 0.1 < ° < 1
B156: Equation of the model (Kernels popped (%)):
B158: Kernels popped (%) = 75,5124999999998-27,5499999999998*Brand-2-15,6874999999998*Brand-3-0,624999999999927*Power of Microwave-600+6,92500000000011*Time-8+7,14999999999992*Brand-2*Power of Microwave-600+11,0249999999999*Brand-3*Power of Microwave-600+28,4499999999999*Brand-2*Time-8-1,2250000000001*Brand-3*Time-8+9,99999999999905E-02*Power of Microwave-600*Time-8
B161: Standardized coefficients (Kernels popped (%)):
B163: Source | C163: Value | D163: Standard error | E163: t | F163: Pr > |t| | G163: Lower bound (95%) | H163: Upper bound (95%) | I163: p-values signification codes
B164: Brand-1 | C164: 0 | D164: 0
B165: Brand-2 | C165: -0.896721395 | D165: 0.2906678645 | E165: -3.085037957 | F165: 0.00806862172 | G165: -1.520141961 | H165: -0.273300829 | I165: **
B166: Brand-3 | C166: -0.5106104132 | D166: 0.2906678645 | E166: -1.756679962 | F166: 0.1008117266 | G166: -1.134030979 | H166: 0.1128101528 | I166: °
B167: Power of Microwave-500 | C167: 0 | D167: 0
B168: Power of Microwave-600 | C168: -0.02157705692 | D168: 0.2906678645 | E168: -0.07423268806 | F168: 0.9418754758 | G168: -0.6449976229 | H168: 0.6018435091 | I168: °
B169: Time-4 | C169: 0 | D169: 0
B170: Time-8 | C170: 0.2390737906 | D170: 0.2906678645 | E170: 0.8224981837 | F170: 0.4245813994 | G170: -0.3843467754 | H170: 0.8624943566 | I170: °
B171: Brand-1*Power of Microwave-500 | C171: 0 | D171: 0
B172: Brand-1*Power of Microwave-600 | C172: 0 | D172: 0
B173: Brand-2*Power of Microwave-500 | C173: 0 | D173: 0
B174: Brand-2*Power of Microwave-600 | C174: 0.1839848144 | D174: 0.2653422436 | E174: 0.6933868198 | F174: 0.4994097692 | G174: -0.3851176969 | H174: 0.7530873258 | I174: °
B175: Brand-3*Power of Microwave-500 | C175: 0 | D175: 0
B176: Brand-3*Power of Microwave-600 | C176: 0.2836968642 | D176: 0.2653422436 | E176: 1.069173383 | F176: 0.3030801744 | G176: -0.2854056472 | H176: 0.8527993755 | I176: °
B177: Brand-1*Time-4 | C177: 0 | D177: 0
B178: Brand-1*Time-8 | C178: 0 | D178: 0
B179: Brand-2*Time-4 | C179: 0 | D179: 0
B180: Brand-2*Time-8 | C180: 0.7320794364 | D180: 0.2653422436 | E180: 2.759000702 | F180: 0.01537085779 | G180: 0.162976925 | H180: 1.301181948 | I180: *
B181: Brand-3*Time-4 | C181: 0 | D181: 0
B182: Brand-3*Time-8 | C182: -0.0315218738 | D182: 0.2653422436 | E182: -0.1187970425 | F182: 0.9071239065 | G182: -0.6006243852 | H182: 0.5375806376 | I182: °
B183: Power of Microwave-500*Time-4 | C183: 0 | D183: 0
B184: Power of Microwave-500*Time-8 | C184: 0 | D184: 0
B185: Power of Microwave-600*Time-4 | C185: 0 | D185: 0
B186: Power of Microwave-600*Time-8 | C186: 0.002989804708 | D186: 0.2517257547 | E186: 0.01187723009 | F186: 0.9906911595 | G186: -0.5369082427 | H186: 0.5428878521 | I186: °
B187: Signification codes: 0 < *** < 0.001 < ** < 0.01 < * < 0.05 < . < 0.1 < ° < 1
B209: Predictions and residuals (Kernels popped (%)):
B211: Observation | C211: Weight | D211: Kernels popped (%) | E211: Pred(Kernels popped (%)) | F211: Residual | G211: Std. residual | H211: Std. dev. on pred. (Mean) | I211: Lower bound 95% (Mean) | J211: Upper bound 95% (Mean) | K211: Std. dev. on pred. (Observation) | L211: Lower bound 95% (Observation) | M211: Upper bound 95% (Observation)
B212: Obs1 | C212: 1 | D212: 70.3 | E212: 82.4375 | F212: -12.1375 | G212: -1.177060493 | H212: 6.656176643 | I212: 68.16142095 | J212: 96.71357905 | K212: 12.27338329 | L212: 56.11371091 | M212: 108.7612891
B213: Obs2 | C213: 1 | D213: 91 | E213: 82.4375 | F213: 8.5625 | G213: 0.8303670831 | H213: 6.656176643 | I213: 68.16142095 | J213: 96.71357905 | K213: 12.27338329 | L213: 56.11371091 | M213: 108.7612891
B214: Obs3 | C214: 1 | D214: 72.7 | E214: 75.5125 | F214: -2.8125 | G214: -0.272748312 | H214: 6.656176643 | I214: 61.23642095 | J214: 89.78857905 | K214: 12.27338329 | L214: 49.18871091 | M214: 101.8362891
B215: Obs4 | C215: 1 | D215: 81.9 | E215: 75.5125 | F215: 6.3875 | G215: 0.6194417219 | H215: 6.656176643 | I215: 61.23642095 | J215: 89.78857905 | K215: 12.27338329 | L215: 49.18871091 | M215: 101.8362891
B216: Obs5 | C216: 1 | D216: 78.7 | E216: 81.9125 | F216: -3.2125 | G216: -0.311539183 | H216: 6.656176643 | I216: 67.63642095 | J216: 96.18857905 | K216: 12.27338329 | L216: 55.58871091 | M216: 108.2362891
B217: Obs6 | C217: 1 | D217: 88.7 | E217: 81.9125 | F217: 6.7875 | G217: 0.6582325929 | H217: 6.656176643 | I217: 67.63642095 | J217: 96.18857905 | K217: 12.27338329 | L217: 55.58871091 | M217: 108.2362891
B218: Obs7 | C218: 1 | D218: 74.1 | E218: 74.8875 | F218: -0.7875 | G218: -0.07636952735 | H218: 6.656176643 | I218: 60.61142095 | J218: 89.16357905 | K218: 12.27338329 | L218: 48.56371091 | M218: 101.2112891
B219: Obs8 | C219: 1 | D219: 72.1 | E219: 74.8875 | F219: -2.7875 | G219: -0.2703238825 | H219: 6.656176643 | I219: 60.61142095 | J219: 89.16357905 | K219: 12.27338329 | L219: 48.56371091 | M219: 101.2112891
B220: Obs9 | C220: 1 | D220: 93.4 | E220: 83.3375 | F220: 10.0625 | G220: 0.9758328495 | H220: 6.656176643 | I220: 69.06142095 | J220: 97.61357905 | K220: 12.27338329 | L220: 57.01371091 | M220: 109.6612891
B221: Obs10 | C221: 1 | D221: 76.3 | E221: 83.3375 | F221: -7.0375 | G221: -0.6824768873 | H221: 6.656176643 | I221: 69.06142095 | J221: 97.61357905 | K221: 12.27338329 | L221: 57.01371091 | M221: 109.6612891
B222: Obs11 | C222: 1 | D222: 45.3 | E222: 47.9625 | F222: -2.6625 | G222: -0.2582017353 | H222: 6.656176643 | I222: 33.68642095 | J222: 62.23857905 | K222: 12.27338329 | L222: 21.63871091 | M222: 74.28628909
B223: Obs12 | C223: 1 | D223: 47.6 | E223: 47.9625 | F223: -0.3625 | G223: -0.03515422688 | H223: 6.656176643 | I223: 33.68642095 | J223: 62.23857905 | K223: 12.27338329 | L223: 21.63871091 | M223: 74.28628909
B224: Obs13 | C224: 1 | D224: 92.2 | E224: 89.9625 | F224: 2.2375 | G224: 0.2169864349 | H224: 6.656176643 | I224: 75.68642095 | J224: 104.238579 | K224: 12.27338329 | L224: 63.63871091 | M224: 116.2862891
B225: Obs14 | C225: 1 | D225: 84.7 | E225: 89.9625 | F225: -5.2625 | G225: -0.5103423971 | H225: 6.656176643 | I225: 75.68642095 | J225: 104.238579 | K225: 12.27338329 | L225: 63.63871091 | M225: 116.2862891
B226: Obs15 | C226: 1 | D226: 66.3 | E226: 54.4875 | F226: 11.8125 | G226: 1.14554291 | H226: 6.656176643 | I226: 40.21142095 | J226: 68.76357905 | K226: 12.27338329 | L226: 28.16371091 | M226: 80.81128909
B227: Obs16 | C227: 1 | D227: 45.7 | E227: 54.4875 | F227: -8.7875 | G227: -0.8521869481 | H227: 6.656176643 | I227: 40.21142095 | J227: 68.76357905 | K227: 12.27338329 | L227: 28.16371091 | M227: 80.81128909
B228: Obs17 | C228: 1 | D228: 50.1 | E228: 65.525 | F228: -15.425 | G228: -1.495872964 | H228: 6.656176643 | I228: 51.24892095 | J228: 79.80107905 | K228: 12.27338329 | L228: 39.20121091 | M228: 91.84878909
B229: Obs18 | C229: 1 | D229: 81.5 | E229: 65.525 | F229: 15.975 | G229: 1.549210412 | H229: 6.656176643 | I229: 51.24892095 | J229: 79.80107905 | K229: 12.27338329 | L229: 39.20121091 | M229: 91.84878909
B230: Obs19 | C230: 1 | D230: 51.4 | E230: 59.825 | F230: -8.425 | G230: -0.8170327212 | H230: 6.656176643 | I230: 45.54892095 | J230: 74.10107905 | K230: 12.27338329 | L230: 33.50121091 | M230: 86.14878909
B231: Obs20 | C231: 1 | D231: 67.7 | E231: 59.825 | F231: 7.875 | G231: 0.7636952735 | H231: 6.656176643 | I231: 45.54892095 | J231: 74.10107905 | K231: 12.27338329 | L231: 33.50121091 | M231: 86.14878909
B232: Obs21 | C232: 1 | D232: 71.5 | E232: 76.025 | F232: -4.525 | G232: -0.4388217286 | H232: 6.656176643 | I232: 61.74892095 | J232: 90.30107905 | K232: 12.27338329 | L232: 49.70121091 | M232: 102.3487891
B233: Obs22 | C233: 1 | D233: 80 | E233: 76.025 | F233: 3.975 | G233: 0.3854842809 | H233: 6.656176643 | I233: 61.74892095 | J233: 90.30107905 | K233: 12.27338329 | L233: 49.70121091 | M233: 102.3487891
B234: Obs23 | C234: 1 | D234: 64 | E234: 70.225 | F234: -6.225 | G234: -0.6036829305 | H234: 6.656176643 | I234: 55.94892095 | J234: 84.50107905 | K234: 12.27338329 | L234: 43.90121091 | M234: 96.54878909
B235: Obs24 | C235: 1 | D235: 77 | E235: 70.225 | F235: 6.775 | G235: 0.6570203782 | H235: 6.656176643 | I235: 55.94892095 | J235: 84.50107905 | K235: 12.27338329 | L235: 43.90121091 | M235: 96.54878909
B276: Interpretation (Kernels popped (%)):
B278: Given the R2, 70% of the variability of the dependent variable Kernels popped (%) is explained by the 6 explanatory variables.
B281: Given the p-value of the F statistic computed in the ANOVA table, and given the significance level of 5%, the information brought by the explanatory variables is significantly better than what a basic mean would bring.
B285: Based on the Type III sum of squares, the following variables bring significant information to explain the variability of the dependent variable Kernels popped (%): Time,Brand*Time.
B288: Based on the Type III sum of squares, the following variables do not bring significant information to explain the variability of the dependent variable Kernels popped (%): Brand,Power of Microwave,Brand*Power of Microwave,Power of Microwave*Time. You might want to remove them from the model.
B292: Among the explanatory variables, based on the Type III sum of squares, variable Time is the most influential.
B297: LS Means for factor Brand:
B299: Category | C299: LS mean | D299: Standard error | E299: Lower bound (95%) | F299: Upper bound (95%)
B300: 1 | C300: 78.6875 | D300: 3.645738094 | E300: 70.86816947 | F300: 86.50683053
B301: 2 | C301: 68.9375 | D301: 3.645738094 | E301: 61.11816947 | F301: 76.75683053
B302: 3 | C302: 67.9 | D302: 3.645738094 | E302: 60.08066947 | F302: 75.71933053
B305: Brand*Power of Microwave:
B307: Category | C307: LS mean | D307: Standard error | E307: Lower bound (95%) | F307: Upper bound (95%)
B308: Brand-1*Power of Microwave-500 | C308: 78.975 | D308: 5.155852257 | E308: 67.91679672 | F308: 90.03320328
B309: Brand-1*Power of Microwave-600 | C309: 78.4 | D309: 5.155852257 | E309: 67.34179672 | F309: 89.45820328
B310: Brand-2*Power of Microwave-500 | C310: 65.65 | D310: 5.155852257 | E310: 54.59179672 | F310: 76.70820328
B311: Brand-2*Power of Microwave-600 | C311: 72.225 | D311: 5.155852257 | E311: 61.16679672 | F311: 83.28320328
B312: Brand-3*Power of Microwave-500 | C312: 62.675 | D312: 5.155852257 | E312: 51.61679672 | F312: 73.73320328
B313: Brand-3*Power of Microwave-600 | C313: 73.125 | D313: 5.155852257 | E313: 62.06679672 | F313: 84.18320328
B316: Brand\Power of Microwave | C316: 500 | D316: 600
B317: 1 | C317: 78.975 | D317: 78.4
B318: 2 | C318: 65.65 | D318: 72.225
B319: 3 | C319: 62.675 | D319: 73.125
... 60 more rows

Sheet XLSTAT_20230912_183151_1_HID (hidden)
A1: 1 | C1: =46.2825+(A1-1)*0.8938043478 -> 46.2825 | D1: =0+1*C1-22.1164065582532*(1.04166666666667+(C1-71.8416666666667)^2/3545.52083333333)^0.5 -> 21.79494195 | E1: 1 | G1: =38.37+(E1-1)*1.0084782609 -> 38.37 | H1: =0+1*G1+22.1164065582532*(1.04166666666667+(G1-71.8416666666667)^2/3545.52083333333)^0.5 -> 64.13971965
A2: 2 | C2: 47.17630435 | D2: 22.81552832 | E2: 2 | G2: 39.37847826 | H2: 64.96959084
A3: 3 | C3: 48.0701087 | D3: 23.83223039 | E3: 3 | G3: 40.38695652 | H3: 65.80372759
A4: 4 | C4: 48.96391304 | D4: 24.84498878 | E4: 4 | G4: 41.39543478 | H4: 66.64221826
A5: 5 | C5: 49.85771739 | D5: 25.85374486 | E5: 5 | G5: 42.40391304 | H5: 67.48515137
A6: 6 | C6: 50.75152174 | D6: 26.85844088 | E6: 6 | G6: 43.4123913 | H6: 68.33261545
A7: 7 | C7: 51.64532609 | D7: 27.85902004 | E7: 7 | G7: 44.42086957 | H7: 69.1846989
A8: 8 | C8: 52.53913043 | D8: 28.85542665 | E8: 8 | G8: 45.42934783 | H8: 70.04148976
A9: 9 | C9: 53.43293478 | D9: 29.84760628 | E9: 9 | G9: 46.43782609 | H9: 70.90307561
A10: 10 | C10: 54.32673913 | D10: 30.83550581 | E10: 10 | G10: 47.44630435 | H10: 71.7695433
A11: 11 | C11: 55.22054348 | D11: 31.81907361 | E11: 11 | G11: 48.45478261 | H11: 72.64097884
A12: 12 | C12: 56.11434783 | D12: 32.79825966 | E12: 12 | G12: 49.46326087 | H12: 73.51746714
A13: 13 | C13: 57.00815217 | D13: 33.77301564 | E13: 13 | G13: 50.47173913 | H13: 74.3990918
A14: 14 | C14: 57.90195652 | D14: 34.74329511 | E14: 14 | G14: 51.48021739 | H14: 75.28593494
A15: 15 | C15: 58.79576087 | D15: 35.70905357 | E15: 15 | G15: 52.48869565 | H15: 76.17807696
A16: 16 | C16: 59.68956522 | D16: 36.67024864 | E16: 16 | G16: 53.49717391 | H16: 77.07559627
A17: 17 | C17: 60.58336956 | D17: 37.62684011 | E17: 17 | G17: 54.50565217 | H17: 77.97856913
A18: 18 | C18: 61.47717391 | D18: 38.57879014 | E18: 18 | G18: 55.51413044 | H18: 78.88706941
A19: 19 | C19: 62.37097826 | D19: 39.52606326 | E19: 19 | G19: 56.5226087 | H19: 79.80116832
A20: 20 | C20: 63.26478261 | D20: 40.46862658 | E20: 20 | G20: 57.53108696 | H20: 80.72093421
A21: 21 | C21: 64.15858696 | D21: 41.40644981 | E21: 21 | G21: 58.53956522 | H21: 81.64643235
A22: 22 | C22: 65.0523913 | D22: 42.33950539 | E22: 22 | G22: 59.54804348 | H22: 82.57772472
A23: 23 | C23: 65.94619565 | D23: 43.26776857 | E23: 23 | G23: 60.55652174 | H23: 83.51486974
A24: 24 | C24: 66.84 | D24: 44.19121748 | E24: 24 | G24: 61.565 | H24: 84.45792213
A25: 25 | C25: 67.73380435 | D25: 45.10983319 | E25: 25 | G25: 62.57347826 | H25: 85.40693267
A26: 26 | C26: 68.62760869 | D26: 46.02359978 | E26: 26 | G26: 63.58195652 | H26: 86.36194802
A27: 27 | C27: 69.52141304 | D27: 46.9325044 | E27: 27 | G27: 64.59043478 | H27: 87.32301055
A28: 28 | C28: 70.41521739 | D28: 47.8365373 | E28: 28 | G28: 65.59891304 | H28: 88.29015816
A29: 29 | C29: 71.30902174 | D29: 48.73569184 | E29: 29 | G29: 66.60739131 | H29: 89.26342416
A30: 30 | C30: 72.20282609 | D30: 49.62996457 | E30: 30 | G30: 67.61586957 | H30: 90.24283712
A31: 31 | C31: 73.09663043 | D31: 50.51935517 | E31: 31 | G31: 68.62434783 | H31: 91.22842074
A32: 32 | C32: 73.99043478 | D32: 51.40386652 | E32: 32 | G32: 69.63282609 | H32: 92.22019379
A33: 33 | C33: =46.2825+(A33-1)*0.8938043478 -> 74.88423913 | D33: =0+1*C33-22.1164065582532*(1.04166666666667+(C33-71.8416666666667)^2/3545.52083333333)^0.5 -> 52.28350463 | E33: 33 | G33: =38.37+(E33-1)*1.0084782609 -> 70.64130435 | H33: =0+1*G33+22.1164065582532*(1.04166666666667+(G33-71.8416666666667)^2/3545.52083333333)^0.5 -> 93.21817
A34: 34 | C34: 75.77804348 | D34: 53.15827865 | E34: 34 | G34: 71.64978261 | H34: 94.22235805
A35: 35 | C35: 76.67184783 | D35: 54.02820085 | E35: 35 | G35: 72.65826087 | H35: 95.23276146
A36: 36 | C36: 77.56565217 | D36: 54.89328656 | E36: 36 | G36: 73.66673913 | H36: 96.24937865
A37: 37 | C37: 78.45945652 | D37: 55.75355413 | E37: 37 | G37: 74.67521739 | H37: 97.2722029
A38: 38 | C38: 79.35326087 | D38: 56.60902488 | E38: 38 | G38: 75.68369565 | H38: 98.30122241
A39: 39 | C39: 80.24706522 | D39: 57.45972302 | E39: 39 | G39: 76.69217391 | H39: 99.33642031
A40: 40 | C40: 81.14086956 | D40: 58.30567557 | E40: 40 | G40: 77.70065218 | H40: 100.3777748
A41: 41 | C41: 82.03467391 | D41: 59.14691229 | E41: 41 | G41: 78.70913044 | H41: 101.425259
A42: 42 | C42: 82.92847826 | D42: 59.98346561 | E42: 42 | G42: 79.7176087 | H42: 102.4788416
A43: 43 | C43: 83.82228261 | D43: 60.81537047 | E43: 43 | G43: 80.72608696 | H43: 103.5384863
A44: 44 | C44: 84.71608696 | D44: 61.6426643 | E44: 44 | G44: 81.73456522 | H44: 104.6041525
A45: 45 | C45: 85.6098913 | D45: 62.46538685 | E45: 45 | G45: 82.74304348 | H45: 105.6757951
A46: 46 | C46: 86.50369565 | D46: 63.28358009 | E46: 46 | G46: 83.75152174 | H46: 106.7533648
A47: 47 | C47: 87.3975 | D47: 64.09728813 | E47: 47 | G47: 84.76 | H47: 107.8368085
A48: 48 | C48: 88.29130435 | D48: 64.90655704 | E48: 48 | G48: 85.76847826 | H48: 108.926069
A49: 49 | C49: 89.18510869 | D49: 65.71143479 | E49: 49 | G49: 86.77695652 | H49: 110.0210858
A50: 50 | C50: 90.07891304 | D50: 66.51197109 | E50: 50 | G50: 87.78543478 | H50: 111.1217948
A51: 51 | C51: 90.97271739 | D51: 67.30821727 | E51: 51 | G51: 88.79391304 | H51: 112.2281288
A52: 52 | C52: 91.86652174 | D52: 68.10022615 | E52: 52 | G52: 89.80239131 | H52: 113.3400176
A53: 53 | C53: 92.76032609 | D53: 68.88805195 | E53: 53 | G53: 90.81086957 | H53: 114.4573884
A54: 54 | C54: 93.65413043 | D54: 69.67175013 | E54: 54 | G54: 91.81934783 | H54: 115.5801657
A55: 55 | C55: 94.54793478 | D55: 70.45137725 | E55: 55 | G55: 92.82782609 | H55: 116.708272
A56: 56 | C56: 95.44173913 | D56: 71.22699092 | E56: 56 | G56: 93.83630435 | H56: 117.8416276
A57: 57 | C57: 96.33554348 | D57: 71.9986496 | E57: 57 | G57: 94.84478261 | H57: 118.980151
A58: 58 | C58: 97.22934782 | D58: 72.76641254 | E58: 58 | G58: 95.85326087 | H58: 120.1237592
A59: 59 | C59: 98.12315217 | D59: 73.53033963 | E59: 59 | G59: 96.86173913 | H59: 121.2723676
A60: 60 | C60: 99.01695652 | D60: 74.29049132 | E60: 60 | G60: 97.87021739 | H60: 122.4258907
A61: 61 | C61: 99.91076087 | D61: 75.04692849 | E61: 61 | G61: 98.87869565 | H61: 123.584242
A62: 62 | C62: 100.8045652 | D62: 75.79971236 | E62: 62 | G62: 99.88717391 | H62: 124.7473341
A63: 63 | C63: 101.6983696 | D63: 76.54890438 | E63: 63 | G63: 100.8956522 | H63: 125.915079
A64: 64 | C64: 102.5921739 | D64: 77.29456616 | E64: 64 | G64: 101.9041304 | H64: 127.0873887
A65: 65 | C65: =46.2825+(A65-1)*0.8938043478 -> 103.4859783 | D65: =0+1*C65-22.1164065582532*(1.04166666666667+(C65-71.8416666666667)^2/3545.52083333333)^0.5 -> 78.03675934 | E65: 65 | G65: =38.37+(E65-1)*1.0084782609 -> 102.9126087 | H65: =0+1*G65+22.1164065582532*(1.04166666666667+(G65-71.8416666666667)^2/3545.52083333333)^0.5 -> 128.2641744
A66: 66 | C66: 104.3797826 | D66: 78.77554554 | E66: 66 | G66: 103.921087 | H66: 129.4453478
A67: 67 | C67: 105.273587 | D67: 79.51098626 | E67: 67 | G67: 104.9295652 | H67: 130.6308203
A68: 68 | C68: 106.1673913 | D68: 80.24314281 | E68: 68 | G68: 105.9380435 | H68: 131.8205037
A69: 69 | C69: 107.0611957 | D69: 80.97207624 | E69: 69 | G69: 106.9465217 | H69: 133.0143103
A70: 70 | C70: 107.955 | D70: 81.69784725 | E70: 70 | G70: 107.955 | H70: 134.2121527

Sheet ANOVA-v2
B1: XLSTAT 2023.2.0.1411 - ANOVA - Start time: 12/09/2023 at 18:29:19 / End time: 12/09/2023 at 18:29:23 / Microsoft Excel 16.016731
B2: Data table: Workbook = demoANO3 (1).xls / Sheet = Data / Range = 'Data'!$H$1:$Q$5 / 5 rows and 10 columns
B3: Constraints: a1=0
B4: Interactions / Level: 2
B5: Confidence interval (%): 95
B6: Tolerance: 0,0001
B7: Use least squares means: Yes
B12: Summary statistics (Quantitative data):
B14: Variable | C14: Observations | D14: Obs. with missing data | E14: Obs. without missing data | F14: Minimum | G14: Maximum | H14: Mean | I14: Std. deviation
B15: Y | C15: 24 | D15: 0 | E15: 24 | F15: 45.3 | G15: 93.4 | H15: 71.84166667 | I15: 14.79447361
B18: Summary statistics (Qualitative data):
B20: Variable | C20: Categories | D20: Counts | E20: Frequencies | F20: %
B21: Brand | C21: 1 | D21: 8 | E21: 8 | F21: 33.33333333
C22: 2 | D22: 8 | E22: 8 | F22: 33.33333333
C23: 3 | D23: 8 | E23: 8 | F23: 33.33333333
B24: Power | C24: 500 | D24: 12 | E24: 12 | F24: 50
C25: 600 | D25: 12 | E25: 12 | F25: 50
B26: Time | C26: 4 | D26: 12 | E26: 12 | F26: 50
C27: 8 | D27: 12 | E27: 12 | F27: 50
B30: Correlation matrix:
C32: Brand-1 | D32: Brand-2 | E32: Brand-3 | F32: Power-500 | G32: Power-600 | H32: Time-4 | I32: Time-8 | J32: Brand-1*Power-500 | K32: Brand-1*Power-600 | L32: Brand-2*Power-500 | M32: Brand-2*Power-600 | N32: Brand-3*Power-500 | O32: Brand-3*Power-600 | P32: Brand-1*Time-4 | Q32: Brand-1*Time-8 | R32: Brand-2*Time-4 | S32: Brand-2*Time-8 | T32: Brand-3*Time-4 | U32: Brand-3*Time-8 | V32: Power-500*Time-4 | W32: Power-500*Time-8 | X32: Power-600*Time-4 | Y32: Power-600*Time-8 | Z32: Y
B33: Brand-1 | C33: 1 | D33: -0.5 | E33: -0.5 | F33: 0 | G33: 0 | H33: 0 | I33: 0 | J33: 0.632455532 | K33: 0.632455532 | L33: -0.316227766 | M33: -0.316227766 | N33: -0.316227766 | O33: -0.316227766 | P33: 0.632455532 | Q33: 0.632455532 | R33: -0.316227766 | S33: -0.316227766 | T33: -0.316227766 | U33: -0.316227766 | V33: 0 | W33: 0 | X33: 0 | Y33: 0 | Z33: 0.3342362187
B34: Brand-2 | C34: -0.5 | D34: 1 | E34: -0.5 | F34: 0 | G34: 0 | H34: 0 | I34: 0 | J34: -0.316227766 | K34: -0.316227766 | L34: 0.632455532 | M34: 0.632455532 | N34: -0.316227766 | O34: -0.316227766 | P34: -0.316227766 | Q34: -0.316227766 | R34: 0.632455532 | S34: 0.632455532 | T34: -0.316227766 | U34: -0.316227766 | V34: 0 | W34: 0 | X34: 0 | Y34: 0 | Z34: -0.1417910191
B35: Brand-3 | C35: -0.5 | D35: -0.5 | E35: 1 | F35: 0 | G35: 0 | H35: 0 | I35: 0 | J35: -0.316227766 | K35: -0.316227766 | L35: -0.316227766 | M35: -0.316227766 | N35: 0.632455532 | O35: 0.632455532 | P35: -0.316227766 | Q35: -0.316227766 | R35: -0.316227766 | S35: -0.316227766 | T35: 0.632455532 | U35: 0.632455532 | V35: 0 | W35: 0 | X35: 0 | Y35: 0 | Z35: -0.1924451996
B36: Power-500 | C36: 0 | D36: 0 | E36: 0 | F36: 1 | G36: -1 | H36: 0 | I36: 0 | J36: 0.4472135955 | K36: -0.4472135955 | L36: 0.4472135955 | M36: -0.4472135955 | N36: 0.4472135955 | O36: -0.4472135955 | P36: 0 | Q36: 0 | R36: 0 | S36: 0 | T36: 0 | U36: 0 | V36: 0.5773502692 | W36: 0.5773502692 | X36: -0.5773502692 | Y36: -0.5773502692 | Z36: -0.1893027127
B37: Power-600 | C37: 0 | D37: 0 | E37: 0 | F37: -1 | G37: 1 | H37: 0 | I37: 0 | J37: -0.4472135955 | K37: 0.4472135955 | L37: -0.4472135955 | M37: 0.4472135955 | N37: -0.4472135955 | O37: 0.4472135955 | P37: 0 | Q37: 0 | R37: 0 | S37: 0 | T37: 0 | U37: 0 | V37: -0.5773502692 | W37: -0.5773502692 | X37: 0.5773502692 | Y37: 0.5773502692 | Z37: 0.1893027127
B38: Time-4 | C38: 0 | D38: 0 | E38: 0 | F38: 0 | G38: 0 | H38: 1 | I38: -1 | J38: 0 | K38: 0 | L38: 0 | M38: 0 | N38: 0 | O38: 0 | P38: 0.4472135955 | Q38: -0.4472135955 | R38: 0.4472135955 | S38: -0.4472135955 | T38: 0.4472135955 | U38: -0.4472135955 | V38: 0.5773502692 | W38: -0.5773502692 | X38: 0.5773502692 | Y38: -0.5773502692 | Z38: -0.5540988216
B39: Time-8 | C39: 0 | D39: 0 | E39: 0 | F39: 0 | G39: 0 | H39: -1 | I39: 1 | J39: 0 | K39: 0 | L39: 0 | M39: 0 | N39: 0 | O39: 0 | P39: -0.4472135955 | Q39: 0.4472135955 | R39: -0.4472135955 | S39: 0.4472135955 | T39: -0.4472135955 | U39: 0.4472135955 | V39: -0.5773502692 | W39: 0.5773502692 | X39: -0.5773502692 | Y39: 0.5773502692 | Z39: 0.5540988216
B40: Brand-1*Power-500 | C40: 0.632455532 | D40: -0.316227766 | E40: -0.316227766 | F40: 0.4472135955 | G40: -0.4472135955 | H40: 0 | I40: 0 | J40: 1 | K40: -0.2 | L40: -0.2 | M40: -0.2 | N40: -0.2 | O40: -0.2 | P40: 0.4 | Q40: 0.4 | R40: -0.2 | S40: -0.2 | T40: -0.2 | U40: -0.2 | V40: 0.2581988897 | W40: 0.2581988897 | X40: -0.2581988897 | Y40: -0.2581988897 | Z40: 0.2202671345
B41: Brand-1*Power-600 | C41: 0.632455532 | D41: -0.316227766 | E41: -0.316227766 | F41: -0.4472135955 | G41: 0.4472135955 | H41: 0 | I41: 0 | J41: -0.2 | K41: 1 | L41: -0.2 | M41: -0.2 | N41: -0.2 | O41: -0.2 | P41: 0.4 | Q41: 0.4 | R41: -0.2 | S41: -0.2 | T41: -0.2 | U41: -0.2 | V41: -0.2581988897 | W41: -0.2581988897 | X41: 0.2581988897 | Y41: 0.2581988897 | Z41: 0.2025119566
B42: Brand-2*Power-500 | C42: -0.316227766 | D42: 0.632455532 | E42: -0.316227766 | F42: 0.4472135955 | G42: -0.4472135955 | H42: 0 | I42: 0 | J42: -0.2 | K42: -0.2 | L42: 1 | M42: -0.2 | N42: -0.2 | O42: -0.2 | P42: -0.2 | Q42: -0.2 | R42: 0.4 | S42: 0.4 | T42: -0.2 | U42: -0.2 | V42: 0.2581988897 | W42: 0.2581988897 | X42: -0.2581988897 | Y42: -0.2581988897 | Z42: -0.1911898141
B43: Brand-2*Power-600 | C43: -0.316227766 | D43: 0.632455532 | E43: -0.316227766 | F43: -0.4472135955 | G43: 0.4472135955 | H43: 0 | I43: 0 | J43: -0.2 | K43: -0.2 | L43: -0.2 | M43: 1 | N43: -0.2 | O43: -0.2 | P43: -0.2 | Q43: -0.2 | R43: 0.4 | S43: 0.4 | T43: -0.2 | U43: -0.2 | V43: -0.2581988897 | W43: -0.2581988897 | X43: 0.2581988897 | Y43: 0.2581988897 | Z43: 0.01183678526
B44: Brand-3*Power-500 | C44: -0.316227766 | D44: -0.316227766 | E44: 0.632455532 | F44: 0.4472135955 | G44: -0.4472135955 | H44: 0 | I44: 0 | J44: -0.2 | K44: -0.2 | L44: -0.2 | M44: -0.2 | N44: 1 | O44: -0.2 | P44: -0.2 | Q44: -0.2 | R44: -0.2 | S44: -0.2 | T44: 0.4 | U44: 0.4 | V44: 0.2581988897 | W44: 0.2581988897 | X44: -0.2581988897 | Y44: -0.2581988897 | Z44: -0.2830535606
B45: Brand-3*Power-600 | C45: -0.316227766 | D45: -0.316227766 | E45: 0.632455532 | F45: -0.4472135955 | G45: 0.4472135955 | H45: 0 | I45: 0 | J45: -0.2 | K45: -0.2 | L45: -0.2 | M45: -0.2 | N45: -0.2 | O45: 1 | P45: -0.2 | Q45: -0.2 | R45: -0.2 | S45: -0.2 | T45: 0.4 | U45: 0.4 | V45: -0.2581988897 | W45: -0.2581988897 | X45: 0.2581988897 | Y45: 0.2581988897 | Z45: 0.03962749849
B46: Brand-1*Time-4 | C46: 0.632455532 | D46: -0.316227766 | E46: -0.316227766 | F46: 0 | G46: 0 | H46: 0.4472135955 | I46: -0.4472135955 | J46: 0.4 | K46: 0.4 | L46: -0.2 | M46: -0.2 | N46: -0.2 | O46: -0.2 | P46: 1 | Q46: -0.2 | R46: -0.2 | S46: -0.2 | T46: -0.2 | U46: -0.2 | V46: 0.2581988897 | W46: -0.2581988897 | X46: 0.2581988897 | Y46: -0.2581988897 | Z46: 0.1037005318
B47: Brand-1*Time-8 | C47: 0.632455532 | D47: -0.316227766 | E47: -0.316227766 | F47: 0 | G47: 0 | H47: -0.4472135955 | I47: 0.4472135955 | J47: 0.4 | K47: 0.4 | L47: -0.2 | M47: -0.2 | N47: -0.2 | O47: -0.2 | P47: -0.2 | Q47: 1 | R47: -0.2 | S47: -0.2 | T47: -0.2 | U47: -0.2 | V47: -0.2581988897 | W47: 0.2581988897 | X47: -0.2581988897 | Y47: 0.2581988897 | Z47: 0.3190785593
B48: Brand-2*Time-4 | C48: -0.316227766 | D48: 0.632455532 | E48: -0.316227766 | F48: 0 | G48: 0 | H48: 0.4472135955 | I48: -0.4472135955 | J48: -0.2 | K48: -0.2 | L48: 0.4 | M48: 0.4 | N48: -0.2 | O48: -0.2 | P48: -0.2 | Q48: -0.2 | R48: 1 | S48: -0.2 | T48: -0.2 | U48: -0.2 | V48: 0.2581988897 | W48: -0.2581988897 | X48: 0.2581988897 | Y48: -0.2581988897 | Z48: -0.63661319
B49: Brand-2*Time-8 | C49: -0.316227766 | D49: 0.632455532 | E49: -0.316227766 | F49: 0 | G49: 0 | H49: -0.4472135955 | I49: 0.4472135955 | J49: -0.2 | K49: -0.2 | L49: 0.4 | M49: 0.4 | N49: -0.2 | O49: -0.2 | P49: -0.2 | Q49: -0.2 | R49: -0.2 | S49: 1 | T49: -0.2 | U49: -0.2 | V49: -0.2581988897 | W49: 0.2581988897 | X49: -0.2581988897 | Y49: 0.2581988897 | Z49: 0.4572601611
B50: Brand-3*Time-4 | C50: -0.316227766 | D50: -0.316227766 | E50: 0.632455532 | F50: 0 | G50: 0 | H50: 0.4472135955 | I50: -0.4472135955 | J50: -0.2 | K50: -0.2 | L50: -0.2 | M50: -0.2 | N50: 0.4 | O50: 0.4 | P50: -0.2 | Q50: -0.2 | R50: -0.2 | S50: -0.2 | T50: 1 | U50: -0.2 | V50: 0.2581988897 | W50: -0.2581988897 | X50: 0.2581988897 | Y50: -0.2581988897 | Z50: -0.2104889205
B51: Brand-3*Time-8 | C51: -0.316227766 | D51: -0.316227766 | E51: 0.632455532 | F51: 0 | G51: 0 | H51: -0.4472135955 | I51: 0.4472135955 | J51: -0.2 | K51: -0.2 | L51: -0.2 | M51: -0.2 | N51: 0.4 | O51: 0.4 | P51: -0.2 | Q51: -0.2 | R51: -0.2 | S51: -0.2 | T51: -0.2 | U51: 1 | V51: -0.2581988897 | W51: 0.2581988897 | X51: -0.2581988897 | Y51: 0.2581988897 | Z51: -0.0329371416
B52: Power-500*Time-4 | C52: 0 | D52: 0 | E52: 0 | F52: 0.5773502692 | G52: -0.5773502692 | H52: 0.5773502692 | I52: -0.5773502692 | J52: 0.2581988897 | K52: -0.2581988897 | L52: 0.2581988897 | M52: -0.2581988897 | N52: 0.2581988897 | O52: -0.2581988897 | P52: 0.2581988897 | Q52: -0.2581988897 | R52: 0.2581988897 | S52: -0.2581988897 | T52: 0.2581988897 | U52: -0.2581988897 | V52: 1 | W52: -0.3333333333 | X52: -0.3333333333 | Y52: -0.3333333333 | Z52: -0.4282064744
B53: Power-500*Time-8 | C53: 0 | D53: 0 | E53: 0 | F53: 0.5773502692 | G53: -0.5773502692 | H53: -0.5773502692 | I53: 0.5773502692 | J53: 0.2581988897 | K53: -0.2581988897 | L53: 0.2581988897 | M53: -0.2581988897 | N53: 0.2581988897 | O53: -0.2581988897 | P53: -0.2581988897 | Q53: 0.2581988897 | R53: -0.2581988897 | S53: 0.2581988897 | T53: -0.2581988897 | U53: 0.2581988897 | V53: -0.3333333333 | W53: 1 | X53: -0.3333333333 | Y53: -0.3333333333 | Z53: 0.2096185301
B54: Power-600*Time-4 | C54: 0 | D54: 0 | E54: 0 | F54: -0.5773502692 | G54: 0.5773502692 | H54: 0.5773502692 | I54: -0.5773502692 | J54: -0.2581988897 | K54: 0.2581988897 | L54: -0.2581988897 | M54: 0.2581988897 | N54: -0.2581988897 | O54: 0.2581988897 | P54: 0.2581988897 | Q54: -0.2581988897 | R54: 0.2581988897 | S54: -0.2581988897 | T54: 0.2581988897 | U54: -0.2581988897 | V54: -0.3333333333 | W54: -0.3333333333 | X54: 1 | Y54: -0.3333333333 | Z54: -0.2116117333
B55: Power-600*Time-8 | C55: 0 | D55: 0 | E55: 0 | F55: -0.5773502692 | G55: 0.5773502692 | H55: -0.5773502692 | I55: 0.5773502692 | J55: -0.2581988897 | K55: 0.2581988897 | L55: -0.2581988897 | M55: 0.2581988897 | N55: -0.2581988897 | O55: 0.2581988897 | P55: -0.2581988897 | Q55: 0.2581988897 | R55: -0.2581988897 | S55: 0.2581988897 | T55: -0.2581988897 | U55: 0.2581988897 | V55: -0.3333333333 | W55: -0.3333333333 | X55: -0.3333333333 | Y55: 1 | Z55: 0.4301996775
B56: Y | C56: 0.3342362187 | D56: -0.1417910191 | E56: -0.1924451996 | F56: -0.1893027127 | G56: 0.1893027127 | H56: -0.5540988216 | I56: 0.5540988216 | J56: 0.2202671345 | K56: 0.2025119566 | L56: -0.1911898141 | M56: 0.01183678526 | N56: -0.2830535606 | O56: 0.03962749849 | P56: 0.1037005318 | Q56: 0.3190785593 | R56: -0.63661319 | S56: 0.4572601611 | T56: -0.2104889205 | U56: -0.0329371416 | V56: -0.4282064744 | W56: 0.2096185301 | X56: -0.2116117333 | Y56: 0.4301996775 | Z56: 1
B59: Regression of variable Y:
B61: Goodness of fit statistics (Y):
B63: Observations | C63: 24
B64: Sum of weights | C64: 24
B65: DF | C65: 14
B66: R² | C66: 0.7042926739
B67: Adjusted R² | C67: 0.5141951071
B68: MSE | C68: 106.33125
B69: RMSE | C69: 10.31170451
B70: MAPE | C70: 9.815100982
B71: DW | C71: 3.05451556
B72: Cp | C72: 10
B73: AIC | C73: 119.0615053
B74: AICC | C74: 135.9845822
B75: SBC | C75: 130.8420436
B76: PC | C76: 0.7181463634
B79: Analysis of variance (Y):
B81: Source | C81: DF | D81: Sum of squares | E81: Mean squares | F81: F | G81: Pr > F | H81: p-values signification codes
B82: Model | C82: 9 | D82: 3545.520833 | E82: 393.9467593 | F82: 3.704901045 | G82: 0.01419531755 | H82: *
B83: Error | C83: 14 | D83: 1488.6375 | E83: 106.33125
B84: Corrected Total | C84: 23 | D84: 5034.158333
B85: Computed against model Y=Mean(Y)
B86: Signification codes: 0 < *** < 0.001 < ** < 0.01 < * < 0.05 < . < 0.1 < ° < 1
B89: Type I Sum of Squares analysis (Y):
B91: Source | C91: DF | D91: Sum of squares | E91: Mean squares | F91: F | G91: Pr > F | H91: p-values signification codes
B92: Brand | C92: 2 | D92: 566.6908333 | E92: 283.3454167 | F92: 2.664742648 | G92: 0.1045572666 | H92: °
B93: Power | C93: 1 | D93: 180.4016667 | E93: 180.4016667 | F93: 1.696600639 | G93: 0.2137533173 | H93: °
B94: Time | C94: 1 | D94: 1545.615 | E94: 1545.615 | F94: 14.53584906 | G94: 0.001902916502 | H94: **
B95: Brand*Power | C95: 2 | D95: 125.1258333 | E95: 62.56291667 | F95: 0.5883775152 | G95: 0.5683865342 | H95: °
B96: Brand*Time | C96: 2 | D96: 1127.6725 | E96: 563.83625 | F96: 5.302639158 | G96: 0.01930626562 | H96: *
B97: Power*Time | C97: 1 | D97: 0.015 | E97: 0.015 | F97: 0.0001410685946 | G97: 0.9906911595 | H97: °
B98: Signification codes: 0 < *** < 0.001 < ** < 0.01 < * < 0.05 < . < 0.1 < ° < 1
B101: Type II Sum of Squares analysis (Y):
B103: Source | C103: DF | D103: Sum of squares | E103: Mean squares | F103: F | G103: Pr > F | H103: p-values signification codes
B104: Brand | C104: 2 | D104: 566.6908333 | E104: 283.3454167 | F104: 2.664742648 | G104: 0.1045572666 | H104: °
B105: Power | C105: 1 | D105: 180.4016667 | E105: 180.4016667 | F105: 1.696600639 | G105: 0.2137533173 | H105: °
B106: Time | C106: 1 | D106: 1545.615 | E106: 1545.615 | F106: 14.53584906 | G106: 0.001902916502 | H106: **
B107: Brand*Power | C107: 2 | D107: 125.1258333 | E107: 62.56291667 | F107: 0.5883775152 | G107: 0.5683865342 | H107: °
B108: Brand*Time | C108: 2 | D108: 1127.6725 | E108: 563.83625 | F108: 5.302639158 | G108: 0.01930626562 | H108: *
B109: Power*Time | C109: 1 | D109: 0.015 | E109: 0.015 | F109: 0.0001410685946 | G109: 0.9906911595 | H109: °
B110: Signification codes: 0 < *** < 0.001 < ** < 0.01 < * < 0.05 < . < 0.1 < ° < 1
B113: Type III Sum of Squares analysis (Y):
B115: Source | C115: DF | D115: Sum of squares | E115: Mean squares | F115: F | G115: Pr > F | H115: p-values signification codes
B116: Brand | C116: 2 | D116: 566.6908333 | E116: 283.3454167 | F116: 2.664742648 | G116: 0.1045572666 | H116: °
B117: Power | C117: 1 | D117: 180.4016667 | E117: 180.4016667 | F117: 1.696600639 | G117: 0.2137533173 | H117: °
B118: Time | C118: 1 | D118: 1545.615 | E118: 1545.615 | F118: 14.53584906 | G118: 0.001902916502 | H118: **
B119: Brand*Power | C119: 2 | D119: 125.1258333 | E119: 62.56291667 | F119: 0.5883775152 | G119: 0.5683865342 | H119: °
B120: Brand*Time | C120: 2 | D120: 1127.6725 | E120: 563.83625 | F120: 5.302639158 | G120: 0.01930626562 | H120: *
B121: Power*Time | C121: 1 | D121: 0.015 | E121: 0.015 | F121: 0.0001410685946 | G121: 0.9906911595 | H121: °
B122: Signification codes: 0 < *** < 0.001 < ** < 0.01 < * < 0.05 < . < 0.1 < ° < 1
B125: Model parameters (Y):
B127: Source | C127: Value | D127: Standard error | E127: t | F127: Pr > |t| | G127: Lower bound (95%) | H127: Upper bound (95%) | I127: p-values signification codes
B128: Intercept | C128: 75.5125 | D128: 6.656176643 | E128: 11.34472597 | F128: 1.916496438e-08 | G128: 61.23642095 | H128: 89.78857905 | I128: ***
B129: Brand-1 | C129: 0 | D129: 0
B130: Brand-2 | C130: -27.55 | D130: 8.930198066 | E130: -3.085037957 | F130: 0.00806862172 | G130: -46.70336992 | H130: -8.39663008 | I130: **
B131: Brand-3 | C131: -15.6875 | D131: 8.930198066 | E131: -1.756679962 | F131: 0.1008117266 | G131: -34.84086992 | H131: 3.46586992 | I131: °
B132: Power-500 | C132: 0 | D132: 0
B133: Power-600 | C133: -0.625 | D133: 8.41947148 | E133: -0.07423268806 | F133: 0.9418754758 | G133: -18.68297034 | H133: 17.43297034 | I133: °
B134: Time-4 | C134: 0 | D134: 0
B135: Time-8 | C135: 6.925 | D135: 8.41947148 | E135: 0.8224981837 | F135: 0.4245813994 | G135: -11.13297034 | H135: 24.98297034 | I135: °
B136: Brand-1*Power-500 | C136: 0 | D136: 0
B137: Brand-1*Power-600 | C137: 0 | D137: 0
B138: Brand-2*Power-500 | C138: 0 | D138: 0
B139: Brand-2*Power-600 | C139: 7.15 | D139: 10.31170451 | E139: 0.6933868198 | F139: 0.4994097692 | G139: -14.96640656 | H139: 29.26640656 | I139: °
B140: Brand-3*Power-500 | C140: 0 | D140: 0
B141: Brand-3*Power-600 | C141: 11.025 | D141: 10.31170451 | E141: 1.069173383 | F141: 0.3030801744 | G141: -11.09140656 | H141: 33.14140656 | I141: °
B142: Brand-1*Time-4 | C142: 0 | D142: 0
B143: Brand-1*Time-8 | C143: 0 | D143: 0
B144: Brand-2*Time-4 | C144: 0 | D144: 0
B145: Brand-2*Time-8 | C145: 28.45 | D145: 10.31170451 | E145: 2.759000702 | F145: 0.01537085779 | G145: 6.333593442 | H145: 50.56640656 | I145: *
B146: Brand-3*Time-4 | C146: 0 | D146: 0
B147: Brand-3*Time-8 | C147: -1.225 | D147: 10.31170451 | E147: -0.1187970425 | F147: 0.9071239065 | G147: -23.34140656 | H147: 20.89140656 | I147: °
B148: Power-500*Time-4 | C148: 0 | D148: 0
B149: Power-500*Time-8 | C149: 0 | D149: 0
B150: Power-600*Time-4 | C150: 0 | D150: 0
B151: Power-600*Time-8 | C151: 0.1 | D151: 8.41947148 | E151: 0.01187723009 | F151: 0.9906911595 | G151: -17.95797034 | H151: 18.15797034 | I151: °
B152: Signification codes: 0 < *** < 0.001 < ** < 0.01 < * < 0.05 < . < 0.1 < ° < 1
B155: Equation of the model (Y):
B157: Y = 75,5124999999998-27,5499999999998*Brand-2-15,6874999999998*Brand-3-0,624999999999927*Power-600+6,92500000000011*Time-8+7,14999999999992*Brand-2*Power-600+11,0249999999999*Brand-3*Power-600+28,4499999999999*Brand-2*Time-8-1,2250000000001*Brand-3*Time-8+9,99999999999905E-02*Power-600*Time-8
B160: Standardized coefficients (Y):
B162: Source | C162: Value | D162: Standard error | E162: t | F162: Pr > |t| | G162: Lower bound (95%) | H162: Upper bound (95%) | I162: p-values signification codes
B163: Brand-1 | C163: 0 | D163: 0
B164: Brand-2 | C164: -0.896721395 | D164: 0.2906678645 | E164: -3.085037957 | F164: 0.00806862172 | G164: -1.520141961 | H164: -0.273300829 | I164: **
B165: Brand-3 | C165: -0.5106104132 | D165: 0.2906678645 | E165: -1.756679962 | F165: 0.1008117266 | G165: -1.134030979 | H165: 0.1128101528 | I165: °
B166: Power-500 | C166: 0 | D166: 0
B167: Power-600 | C167: -0.02157705692 | D167: 0.2906678645 | E167: -0.07423268806 | F167: 0.9418754758 | G167: -0.6449976229 | H167: 0.6018435091 | I167: °
B168: Time-4 | C168: 0 | D168: 0
B169: Time-8 | C169: 0.2390737906 | D169: 0.2906678645 | E169: 0.8224981837 | F169: 0.4245813994 | G169: -0.3843467754 | H169: 0.8624943566 | I169: °
B170: Brand-1*Power-500 | C170: 0 | D170: 0
B171: Brand-1*Power-600 | C171: 0 | D171: 0
B172: Brand-2*Power-500 | C172: 0 | D172: 0
B173: Brand-2*Power-600 | C173: 0.1839848144 | D173: 0.2653422436 | E173: 0.6933868198 | F173: 0.4994097692 | G173: -0.3851176969 | H173: 0.7530873258 | I173: °
B174: Brand-3*Power-500 | C174: 0 | D174: 0
B175: Brand-3*Power-600 | C175: 0.2836968642 | D175: 0.2653422436 | E175: 1.069173383 | F175: 0.3030801744 | G175: -0.2854056472 | H175: 0.8527993755 | I175: °
B176: Brand-1*Time-4 | C176: 0 | D176: 0
B177: Brand-1*Time-8 | C177: 0 | D177: 0
B178: Brand-2*Time-4 | C178: 0 | D178: 0
B179: Brand-2*Time-8 | C179: 0.7320794364 | D179: 0.2653422436 | E179: 2.759000702 | F179: 0.01537085779 | G179: 0.162976925 | H179: 1.301181948 | I179: *
B180: Brand-3*Time-4 | C180: 0 | D180: 0
B181: Brand-3*Time-8 | C181: -0.0315218738 | D181: 0.2653422436 | E181: -0.1187970425 | F181: 0.9071239065 | G181: -0.6006243852 | H181: 0.5375806376 | I181: °
B182: Power-500*Time-4 | C182: 0 | D182: 0
B183: Power-500*Time-8 | C183: 0 | D183: 0
B184: Power-600*Time-4 | C184: 0 | D184: 0
B185: Power-600*Time-8 | C185: 0.002989804708 | D185: 0.2517257547 | E185: 0.01187723009 | F185: 0.9906911595 | G185: -0.5369082427 | H185: 0.5428878521 | I185: °
B186: Signification codes: 0 < *** < 0.001 < ** < 0.01 < * < 0.05 < . < 0.1 < ° < 1
B208: Predictions and residuals (Y):
B210: Observation | C210: Weight | D210: Y | E210: Pred(Y) | F210: Residual | G210: Std. residual | H210: Std. dev. on pred. (Mean) | I210: Lower bound 95% (Mean) | J210: Upper bound 95% (Mean) | K210: Std. dev. on pred. (Observation) | L210: Lower bound 95% (Observation) | M210: Upper bound 95% (Observation)
B211: Obs1 | C211: 1 | D211: 70.3 | E211: 82.4375 | F211: -12.1375 | G211: -1.177060493 | H211: 6.656176643 | I211: 68.16142095 | J211: 96.71357905 | K211: 12.27338329 | L211: 56.11371091 | M211: 108.7612891
B212: Obs2 | C212: 1 | D212: 91 | E212: 82.4375 | F212: 8.5625 | G212: 0.8303670831 | H212: 6.656176643 | I212: 68.16142095 | J212: 96.71357905 | K212: 12.27338329 | L212: 56.11371091 | M212: 108.7612891
B213: Obs3 | C213: 1 | D213: 72.7 | E213: 75.5125 | F213: -2.8125 | G213: -0.272748312 | H213: 6.656176643 | I213: 61.23642095 | J213: 89.78857905 | K213: 12.27338329 | L213: 49.18871091 | M213: 101.8362891
B214: Obs4 | C214: 1 | D214: 81.9 | E214: 75.5125 | F214: 6.3875 | G214: 0.6194417219 | H214: 6.656176643 | I214: 61.23642095 | J214: 89.78857905 | K214: 12.27338329 | L214: 49.18871091 | M214: 101.8362891
B215: Obs5 | C215: 1 | D215: 78.7 | E215: 81.9125 | F215: -3.2125 | G215: -0.311539183 | H215: 6.656176643 | I215: 67.63642095 | J215: 96.18857905 | K215: 12.27338329 | L215: 55.58871091 | M215: 108.2362891
B216: Obs6 | C216: 1 | D216: 88.7 | E216: 81.9125 | F216: 6.7875 | G216: 0.6582325929 | H216: 6.656176643 | I216: 67.63642095 | J216: 96.18857905 | K216: 12.27338329 | L216: 55.58871091 | M216: 108.2362891
B217: Obs7 | C217: 1 | D217: 74.1 | E217: 74.8875 | F217: -0.7875 | G217: -0.07636952735 | H217: 6.656176643 | I217: 60.61142095 | J217: 89.16357905 | K217: 12.27338329 | L217: 48.56371091 | M217: 101.2112891
B218: Obs8 | C218: 1 | D218: 72.1 | E218: 74.8875 | F218: -2.7875 | G218: -0.2703238825 | H218: 6.656176643 | I218: 60.61142095 | J218: 89.16357905 | K218: 12.27338329 | L218: 48.56371091 | M218: 101.2112891
B219: Obs9 | C219: 1 | D219: 93.4 | E219: 83.3375 | F219: 10.0625 | G219: 0.9758328495 | H219: 6.656176643 | I219: 69.06142095 | J219: 97.61357905 | K219: 12.27338329 | L219: 57.01371091 | M219: 109.6612891
B220: Obs10 | C220: 1 | D220: 76.3 | E220: 83.3375 | F220: -7.0375 | G220: -0.6824768873 | H220: 6.656176643 | I220: 69.06142095 | J220: 97.61357905 | K220: 12.27338329 | L220: 57.01371091 | M220: 109.6612891
B221: Obs11 | C221: 1 | D221: 45.3 | E221: 47.9625 | F221: -2.6625 | G221: -0.2582017353 | H221: 6.656176643 | I221: 33.68642095 | J221: 62.23857905 | K221: 12.27338329 | L221: 21.63871091 | M221: 74.28628909
B222: Obs12 | C222: 1 | D222: 47.6 | E222: 47.9625 | F222: -0.3625 | G222: -0.03515422688 | H222: 6.656176643 | I222: 33.68642095 | J222: 62.23857905 | K222: 12.27338329 | L222: 21.63871091 | M222: 74.28628909
B223: Obs13 | C223: 1 | D223: 92.2 | E223: 89.9625 | F223: 2.2375 | G223: 0.2169864349 | H223: 6.656176643 | I223: 75.68642095 | J223: 104.238579 | K223: 12.27338329 | L223: 63.63871091 | M223: 116.2862891
B224: Obs14 | C224: 1 | D224: 84.7 | E224: 89.9625 | F224: -5.2625 | G224: -0.5103423971 | H224: 6.656176643 | I224: 75.68642095 | J224: 104.238579 | K224: 12.27338329 | L224: 63.63871091 | M224: 116.2862891
B225: Obs15 | C225: 1 | D225: 66.3 | E225: 54.4875 | F225: 11.8125 | G225: 1.14554291 | H225: 6.656176643 | I225: 40.21142095 | J225: 68.76357905 | K225: 12.27338329 | L225: 28.16371091 | M225: 80.81128909
B226: Obs16 | C226: 1 | D226: 45.7 | E226: 54.4875 | F226: -8.7875 | G226: -0.8521869481 | H226: 6.656176643 | I226: 40.21142095 | J226: 68.76357905 | K226: 12.27338329 | L226: 28.16371091 | M226: 80.81128909
B227: Obs17 | C227: 1 | D227: 50.1 | E227: 65.525 | F227: -15.425 | G227: -1.495872964 | H227: 6.656176643 | I227: 51.24892095 | J227: 79.80107905 | K227: 12.27338329 | L227: 39.20121091 | M227: 91.84878909
B228: Obs18 | C228: 1 | D228: 81.5 | E228: 65.525 | F228: 15.975 | G228: 1.549210412 | H228: 6.656176643 | I228: 51.24892095 | J228: 79.80107905 | K228: 12.27338329 | L228: 39.20121091 | M228: 91.84878909
B229: Obs19 | C229: 1 | D229: 51.4 | E229: 59.825 | F229: -8.425 | G229: -0.8170327212 | H229: 6.656176643 | I229: 45.54892095 | J229: 74.10107905 | K229: 12.27338329 | L229: 33.50121091 | M229: 86.14878909
B230: Obs20 | C230: 1 | D230: 67.7 | E230: 59.825 | F230: 7.875 | G230: 0.7636952735 | H230: 6.656176643 | I230: 45.54892095 | J230: 74.10107905 | K230: 12.27338329 | L230: 33.50121091 | M230: 86.14878909
B231: Obs21 | C231: 1 | D231: 71.5 | E231: 76.025 | F231: -4.525 | G231: -0.4388217286 | H231: 6.656176643 | I231: 61.74892095 | J231: 90.30107905 | K231: 12.27338329 | L231: 49.70121091 | M231: 102.3487891
B232: Obs22 | C232: 1 | D232: 80 | E232: 76.025 | F232: 3.975 | G232: 0.3854842809 | H232: 6.656176643 | I232: 61.74892095 | J232: 90.30107905 | K232: 12.27338329 | L232: 49.70121091 | M232: 102.3487891
B233: Obs23 | C233: 1 | D233: 64 | E233: 70.225 | F233: -6.225 | G233: -0.6036829305 | H233: 6.656176643 | I233: 55.94892095 | J233: 84.50107905 | K233: 12.27338329 | L233: 43.90121091 | M233: 96.54878909
B234: Obs24 | C234: 1 | D234: 77 | E234: 70.225 | F234: 6.775 | G234: 0.6570203782 | H234: 6.656176643 | I234: 55.94892095 | J234: 84.50107905 | K234: 12.27338329 | L234: 43.90121091 | M234: 96.54878909
B275: Interpretation (Y):
B277: Given the R2, 70% of the variability of the dependent variable Y is explained by the 6 explanatory variables.
B280: Given the p-value of the F statistic computed in the ANOVA table, and given the significance level of 5%, the information brought by the explanatory variables is significantly better than what a basic mean would bring.
B284: Based on the Type III sum of squares, the following variables bring significant information to explain the variability of the dependent variable Y: Time,Brand*Time.
B287: Based on the Type III sum of squares, the following variables do not bring significant information to explain the variability of the dependent variable Y: Brand,Power,Brand*Power,Power*Time. You might want to remove them from the model.
B291: Among the explanatory variables, based on the Type III sum of squares, variable Time is the most influential.
B296: LS Means for factor Brand:
B298: Category | C298: LS mean | D298: Standard error | E298: Lower bound (95%) | F298: Upper bound (95%)
B299: 1 | C299: 78.6875 | D299: 3.645738094 | E299: 70.86816947 | F299: 86.50683053
B300: 2 | C300: 68.9375 | D300: 3.645738094 | E300: 61.11816947 | F300: 76.75683053
B301: 3 | C301: 67.9 | D301: 3.645738094 | E301: 60.08066947 | F301: 75.71933053
B304: Brand*Power:
B306: Category | C306: LS mean | D306: Standard error | E306: Lower bound (95%) | F306: Upper bound (95%)
B307: Brand-1*Power-500 | C307: 78.975 | D307: 5.155852257 | E307: 67.91679672 | F307: 90.03320328
B308: Brand-1*Power-600 | C308: 78.4 | D308: 5.155852257 | E308: 67.34179672 | F308: 89.45820328
B309: Brand-2*Power-500 | C309: 65.65 | D309: 5.155852257 | E309: 54.59179672 | F309: 76.70820328
B310: Brand-2*Power-600 | C310: 72.225 | D310: 5.155852257 | E310: 61.16679672 | F310: 83.28320328
B311: Brand-3*Power-500 | C311: 62.675 | D311: 5.155852257 | E311: 51.61679672 | F311: 73.73320328
B312: Brand-3*Power-600 | C312: 73.125 | D312: 5.155852257 | E312: 62.06679672 | F312: 84.18320328
B315: Brand\Power | C315: 500 | D315: 600
B316: 1 | C316: 78.975 | D316: 78.4
B317: 2 | C317: 65.65 | D317: 72.225
B318: 3 | C318: 62.675 | D318: 73.125
B321: Brand*Time:
... 59 more rows

Sheet XLSTAT_20230912_182916_1_HID (hidden)
A1: 1 | C1: =46.2825+(A1-1)*0.8938043478 -> 46.2825 | D1: =0+1*C1-22.1164065582532*(1.04166666666667+(C1-71.8416666666667)^2/3545.52083333333)^0.5 -> 21.79494195 | E1: 1 | G1: =38.37+(E1-1)*1.0084782609 -> 38.37 | H1: =0+1*G1+22.1164065582532*(1.04166666666667+(G1-71.8416666666667)^2/3545.52083333333)^0.5 -> 64.13971965
A2: 2 | C2: 47.17630435 | D2: 22.81552832 | E2: 2 | G2: 39.37847826 | H2: 64.96959084
A3: 3 | C3: 48.0701087 | D3: 23.83223039 | E3: 3 | G3: 40.38695652 | H3: 65.80372759
A4: 4 | C4: 48.96391304 | D4: 24.84498878 | E4: 4 | G4: 41.39543478 | H4: 66.64221826
A5: 5 | C5: 49.85771739 | D5: 25.85374486 | E5: 5 | G5: 42.40391304 | H5: 67.48515137
A6: 6 | C6: 50.75152174 | D6: 26.85844088 | E6: 6 | G6: 43.4123913 | H6: 68.33261545
A7: 7 | C7: 51.64532609 | D7: 27.85902004 | E7: 7 | G7: 44.42086957 | H7: 69.1846989
A8: 8 | C8: 52.53913043 | D8: 28.85542665 | E8: 8 | G8: 45.42934783 | H8: 70.04148976
A9: 9 | C9: 53.43293478 | D9: 29.84760628 | E9: 9 | G9: 46.43782609 | H9: 70.90307561
A10: 10 | C10: 54.32673913 | D10: 30.83550581 | E10: 10 | G10: 47.44630435 | H10: 71.7695433
A11: 11 | C11: 55.22054348 | D11: 31.81907361 | E11: 11 | G11: 48.45478261 | H11: 72.64097884
A12: 12 | C12: 56.11434783 | D12: 32.79825966 | E12: 12 | G12: 49.46326087 | H12: 73.51746714
A13: 13 | C13: 57.00815217 | D13: 33.77301564 | E13: 13 | G13: 50.47173913 | H13: 74.3990918
A14: 14 | C14: 57.90195652 | D14: 34.74329511 | E14: 14 | G14: 51.48021739 | H14: 75.28593494
A15: 15 | C15: 58.79576087 | D15: 35.70905357 | E15: 15 | G15: 52.48869565 | H15: 76.17807696
A16: 16 | C16: 59.68956522 | D16: 36.67024864 | E16: 16 | G16: 53.49717391 | H16: 77.07559627
A17: 17 | C17: 60.58336956 | D17: 37.62684011 | E17: 17 | G17: 54.50565217 | H17: 77.97856913
A18: 18 | C18: 61.47717391 | D18: 38.57879014 | E18: 18 | G18: 55.51413044 | H18: 78.88706941
A19: 19 | C19: 62.37097826 | D19: 39.52606326 | E19: 19 | G19: 56.5226087 | H19: 79.80116832
A20: 20 | C20: 63.26478261 | D20: 40.46862658 | E20: 20 | G20: 57.53108696 | H20: 80.72093421
A21: 21 | C21: 64.15858696 | D21: 41.40644981 | E21: 21 | G21: 58.53956522 | H21: 81.64643235
A22: 22 | C22: 65.0523913 | D22: 42.33950539 | E22: 22 | G22: 59.54804348 | H22: 82.57772472
A23: 23 | C23: 65.94619565 | D23: 43.26776857 | E23: 23 | G23: 60.55652174 | H23: 83.51486974
A24: 24 | C24: 66.84 | D24: 44.19121748 | E24: 24 | G24: 61.565 | H24: 84.45792213
A25: 25 | C25: 67.73380435 | D25: 45.10983319 | E25: 25 | G25: 62.57347826 | H25: 85.40693267
A26: 26 | C26: 68.62760869 | D26: 46.02359978 | E26: 26 | G26: 63.58195652 | H26: 86.36194802
A27: 27 | C27: 69.52141304 | D27: 46.9325044 | E27: 27 | G27: 64.59043478 | H27: 87.32301055
A28: 28 | C28: 70.41521739 | D28: 47.8365373 | E28: 28 | G28: 65.59891304 | H28: 88.29015816
A29: 29 | C29: 71.30902174 | D29: 48.73569184 | E29: 29 | G29: 66.60739131 | H29: 89.26342416
A30: 30 | C30: 72.20282609 | D30: 49.62996457 | E30: 30 | G30: 67.61586957 | H30: 90.24283712
A31: 31 | C31: 73.09663043 | D31: 50.51935517 | E31: 31 | G31: 68.62434783 | H31: 91.22842074
A32: 32 | C32: 73.99043478 | D32: 51.40386652 | E32: 32 | G32: 69.63282609 | H32: 92.22019379
A33: 33 | C33: =46.2825+(A33-1)*0.8938043478 -> 74.88423913 | D33: =0+1*C33-22.1164065582532*(1.04166666666667+(C33-71.8416666666667)^2/3545.52083333333)^0.5 -> 52.28350463 | E33: 33 | G33: =38.37+(E33-1)*1.0084782609 -> 70.64130435 | H33: =0+1*G33+22.1164065582532*(1.04166666666667+(G33-71.8416666666667)^2/3545.52083333333)^0.5 -> 93.21817
A34: 34 | C34: 75.77804348 | D34: 53.15827865 | E34: 34 | G34: 71.64978261 | H34: 94.22235805
A35: 35 | C35: 76.67184783 | D35: 54.02820085 | E35: 35 | G35: 72.65826087 | H35: 95.23276146
A36: 36 | C36: 77.56565217 | D36: 54.89328656 | E36: 36 | G36: 73.66673913 | H36: 96.24937865
A37: 37 | C37: 78.45945652 | D37: 55.75355413 | E37: 37 | G37: 74.67521739 | H37: 97.2722029
A38: 38 | C38: 79.35326087 | D38: 56.60902488 | E38: 38 | G38: 75.68369565 | H38: 98.30122241
A39: 39 | C39: 80.24706522 | D39: 57.45972302 | E39: 39 | G39: 76.69217391 | H39: 99.33642031
A40: 40 | C40: 81.14086956 | D40: 58.30567557 | E40: 40 | G40: 77.70065218 | H40: 100.3777748
A41: 41 | C41: 82.03467391 | D41: 59.14691229 | E41: 41 | G41: 78.70913044 | H41: 101.425259
A42: 42 | C42: 82.92847826 | D42: 59.98346561 | E42: 42 | G42: 79.7176087 | H42: 102.4788416
A43: 43 | C43: 83.82228261 | D43: 60.81537047 | E43: 43 | G43: 80.72608696 | H43: 103.5384863
A44: 44 | C44: 84.71608696 | D44: 61.6426643 | E44: 44 | G44: 81.73456522 | H44: 104.6041525
A45: 45 | C45: 85.6098913 | D45: 62.46538685 | E45: 45 | G45: 82.74304348 | H45: 105.6757951
A46: 46 | C46: 86.50369565 | D46: 63.28358009 | E46: 46 | G46: 83.75152174 | H46: 106.7533648
A47: 47 | C47: 87.3975 | D47: 64.09728813 | E47: 47 | G47: 84.76 | H47: 107.8368085
A48: 48 | C48: 88.29130435 | D48: 64.90655704 | E48: 48 | G48: 85.76847826 | H48: 108.926069
A49: 49 | C49: 89.18510869 | D49: 65.71143479 | E49: 49 | G49: 86.77695652 | H49: 110.0210858
A50: 50 | C50: 90.07891304 | D50: 66.51197109 | E50: 50 | G50: 87.78543478 | H50: 111.1217948
A51: 51 | C51: 90.97271739 | D51: 67.30821727 | E51: 51 | G51: 88.79391304 | H51: 112.2281288
A52: 52 | C52: 91.86652174 | D52: 68.10022615 | E52: 52 | G52: 89.80239131 | H52: 113.3400176
A53: 53 | C53: 92.76032609 | D53: 68.88805195 | E53: 53 | G53: 90.81086957 | H53: 114.4573884
A54: 54 | C54: 93.65413043 | D54: 69.67175013 | E54: 54 | G54: 91.81934783 | H54: 115.5801657
A55: 55 | C55: 94.54793478 | D55: 70.45137725 | E55: 55 | G55: 92.82782609 | H55: 116.708272
A56: 56 | C56: 95.44173913 | D56: 71.22699092 | E56: 56 | G56: 93.83630435 | H56: 117.8416276
A57: 57 | C57: 96.33554348 | D57: 71.9986496 | E57: 57 | G57: 94.84478261 | H57: 118.980151
A58: 58 | C58: 97.22934782 | D58: 72.76641254 | E58: 58 | G58: 95.85326087 | H58: 120.1237592
A59: 59 | C59: 98.12315217 | D59: 73.53033963 | E59: 59 | G59: 96.86173913 | H59: 121.2723676
A60: 60 | C60: 99.01695652 | D60: 74.29049132 | E60: 60 | G60: 97.87021739 | H60: 122.4258907
A61: 61 | C61: 99.91076087 | D61: 75.04692849 | E61: 61 | G61: 98.87869565 | H61: 123.584242
A62: 62 | C62: 100.8045652 | D62: 75.79971236 | E62: 62 | G62: 99.88717391 | H62: 124.7473341
A63: 63 | C63: 101.6983696 | D63: 76.54890438 | E63: 63 | G63: 100.8956522 | H63: 125.915079
A64: 64 | C64: 102.5921739 | D64: 77.29456616 | E64: 64 | G64: 101.9041304 | H64: 127.0873887
A65: 65 | C65: =46.2825+(A65-1)*0.8938043478 -> 103.4859783 | D65: =0+1*C65-22.1164065582532*(1.04166666666667+(C65-71.8416666666667)^2/3545.52083333333)^0.5 -> 78.03675934 | E65: 65 | G65: =38.37+(E65-1)*1.0084782609 -> 102.9126087 | H65: =0+1*G65+22.1164065582532*(1.04166666666667+(G65-71.8416666666667)^2/3545.52083333333)^0.5 -> 128.2641744
A66: 66 | C66: 104.3797826 | D66: 78.77554554 | E66: 66 | G66: 103.921087 | H66: 129.4453478
A67: 67 | C67: 105.273587 | D67: 79.51098626 | E67: 67 | G67: 104.9295652 | H67: 130.6308203
A68: 68 | C68: 106.1673913 | D68: 80.24314281 | E68: 68 | G68: 105.9380435 | H68: 131.8205037
A69: 69 | C69: 107.0611957 | D69: 80.97207624 | E69: 69 | G69: 106.9465217 | H69: 133.0143103
A70: 70 | C70: 107.955 | D70: 81.69784725 | E70: 70 | G70: 107.955 | H70: 134.2121527
